Workbook

Sheet Balanza Agosto 2025
A3: BALANZA DE COMPROBACION
A4: Del ejercicio terminado de Agosto 2025
A5: (Valores en RD$)
B7: CUENTA | C7: CONCEPTO | D7: SALDO INICIAL | E7: DEBITO | F7: CREDITO | G7: BALANCE
B8: 1101020702 | C8: FONDO OPERATIVO # 110207192-4 | D8: 3,050.93 | E8: 1,969,772.38 | F8: 1,967,685.42 | G8: =D8+E8-F8 -> 5,137.89
B9: 1101020704 | C9: MANTENIMIENTO DE CLINICA #110207193-2 | G9: =D9+E9-F9 -> 0
B10: 1101020701 | C10: VENTAS DE SERVICIOS (FONDOS SENASA) #110205793-0 | D10: 15,266,131.56 | E10: 11,149,309.70 | F10: 7,241,455.16 | G10: 19,173,986.10 | H10: =SUM(G8:G10) -> 19,179,123.99
B11: 110601 | C11: Existencia de Bienes de Cambios y Consumo | E11: 10,937,551.44 | G11: 10,937,551.44
B12: 110602 | C12: Existencias de Productos Terminados y en Proceso | G12: 0
B13: 1206010003 | C13: Equipo de Transporte y Otros | D13: 1,672,241.70 | G13: 1,672,241.70
B14: 1206010005 | C14: Equipos Médicos, Sanitarios y Muebles Oficinas | D14: 15,284,357.96 | G14: 15,284,357.96 | H14: =SUM(G13:G14) -> 16,956,599.66
B15: 2103060002 | C15: Deducciones Personales a Pagar | E15: 130,826.04 | F15: 130,826.04 | G15: =-(F15+D15-E15) -> 0
B16: 2103020002 | C16: Proveedores Directos Externos a Pagar a Corto Plazo | D16: 3,562,854.97 | E16: 6,854,093.60 | F16: 4,103,892.45 | G16: (812,653.82)
B17: 2298010003 | C17: Provisión para Pagos de Bonificaciones | D17: 6,359,259.78 | F17: 763,280.88 | G17: (7,122,540.66)
B18: 2198020001 | C18: Regalía Pascual por Pagar | D18: 2,447,114.54 | F18: 125,594.89 | G18: (2,572,709.43)
B19: 2103060001 | C19: Retenciones Impositivas por Pagar | D19: 325,518.77 | E19: 227,032.38 | F19: 310,073.60 | G19: (408,559.99)
B20: 3201 | C20: Capital Institucional | D20: (2,343,447.41) | F20: 10,937,551.44 | G20: (8,594,104.03)
B21: 320301 | C21: Resultados de Ejercicios Anteriores | D21: 21,874,481.50 | G21: =-(F21+D21-E21) -> (21,874,481.50)
B22: 4102980003 | C22: Ingresos por Contribuciones | E22: 0 | F22: 1,969,772.38 | G22: (1,969,772.38)
B23: 4102980998 | C23: Otros Ingresos | E23: 0 | F23: 11,149,309.70 | G23: (11,149,309.70) | H23: =SUM(G22:G23) -> (13,119,082.08)
B24: 51010100070002 | C24: Bonificaciones | E24: 763,280.88 | F24: - | G24: =E24 -> 763,280.88
B25: 51010100070001 | C25: Regalía Pascual | E25: 125,594.89 | F25: - | G25: 125,594.89
B26: 51010200020001 | C26: Alimentos y Productos Agroforestales | E26: 277,028.60 | F26: 0 | G26: =E26 -> 277,028.60
B27: 51010200010006 | C27: Alquileres | E27: 847,055.54 | F27: 0 | G27: =E27 -> 847,055.54
B28: 51010200020004 | C28: Combustibles, Lubricantes, Productos quimicos y Conexos | E28: 123,960.86 | F28: 0 | G28: 123,960.86
B29: 510102000109990001 | C29: Comisiones y Gastos Bancarios | E29: 15,079.54 | F29: 0 | G29: 15,079.54
B30: 51010200010008 | C30: Conservación, Reparaciones menores y Contrucciones Temporales | E30: 450,903.00 | F30: 0 | G30: 450,903.00
B31: 5101010080002 | C31: Contribuciones al Seguro de Pensiones | E31: 153,046.62 | F31: 0 | G31: 153,046.62
B32: 5101010080003 | C32: Contribuciones al Seguro de Riesgo Laboral | E32: 25,867.02 | F32: 0 | G32: 25,867.02
B33: 51010100080001 | C33: Contribuciones al Seguro de Salud | E33: 152,831.05 | F33: 0 | G33: 152,831.05
B34: 5101010004 | C34: Jornales | E34: 12,000.00 | F34: 0 | G34: 12,000.00
B35: 51010200020007 | C35: Productos y Utiles Varios | E35: 2,580,037.45 | F35: 0 | G35: 2,580,037.45 | H35: =SUM(G35+G28+G26) -> 2,981,026.91
B36: 51010200010001 | C36: Servicios de Comunicaciones | E36: 90,721.20 | F36: 0 | G36: 90,721.20 | H36: =SUM(G36+G34+G27) -> 949,776.74
B37: 5101010002 | C37: Sueldo Personal Temporero | E37: 136,775.32 | F37: 0 | G37: 136,775.32
B38: 51010100010001 | C38: Sueldos Fijos | E38: 1,470,674.45 | F38: 0 | G38: 1,470,674.45
B39: 51010200010004 | C39: Viaticos Dentro y Fuera del País | E39: 206,000.00 | F39: 0 | G39: 206,000.00 | H39: =SUM(G39+G38+G37+G33+G32+G31+G25+G24) -> 3,034,070.23
C40: TOTAL | E40: =SUM(E8:E39) -> 38,699,441.96 | F40: =SUM(F8:F39) -> 38,699,441.96 | G40: =SUM(G8:G39) -> (0.00)
G42: =SUM(G24:G39) -> 7,430,856.42
E44: =E40-F40 -> 0

Sheet Balanza JULIO 2025 (hidden)
A3: BALANZA DE COMPROBACION
A4: Del ejercicio terminado de Julio 2025
A5: (Valores en RD$)
A7: SALDO INICIAL | B7: CUENTA | C7: CONCEPTO | D7: DEBITO | E7: CREDITO | F7: BALANCE
A8: 6,110.83 | B8: 1101020702 | C8: FONDO OPERATIVO # 110207192-4 | D8: 1,966,712.48 | E8: 1,969,772.38 | F8: =A8+D8-E8 -> 3,050.93
A9: 0 | B9: 1101020704 | C9: MANTENIMIENTO DE CLINICA #110207193-2 | D9: 0 | E9: 102.34 | F9: =A9+D9-E9 -> (102.34)
A10: 12,096,496.32 | B10: 1101020701 | C10: VENTAS DE SERVICIOS (FONDOS SENASA) #110205793-0 | D10: 8,484,051.98 | E10: 5,314,416.74 | F10: =A10+D10-E10 -> 15,266,131.56 | G10: =SUM(F8:F10) -> 15,269,080.15
B11: 110601 | C11: Existencia de Bienes de Cambios y Consumo | D11: 9,840,640.21 | F11: 9,840,640.21
B12: 110602 | C12: Existencias de Productos Terminados y en Proceso | F12: 0
A13: 1,672,241.70 | B13: 1206010003 | C13: Equipo de Transporte, Tracción y Elevación | F13: 1,672,241.70
A14: 4,097,971.19 | B14: 1206010004 | C14: Equipos de Computación | F14: 4,097,971.19
A15: 5,802,494.73 | B15: 1206010005 | C15: Equipos Médicos, Sanitarios y Veterinarios | F15: 5,802,494.73
A16: 3,577,594.22 | B16: 1206010007 | C16: Equipos y Muebles para Oficinas | F16: 3,577,594.22 | G16: =SUM(F13:F16) -> 15,150,301.84
B17: 2103060002 | C17: Deducciones Personales a Pagar | D17: 133,132.50 | E17: 133,132.50
A18: 6,824,189.10 | B18: 2103020002 | C18: Proveedores Directos Externos a Pagar a Corto Plazo | D18: 4,770,638.82 | E18: 1,509,304.69 | F18: =-(E18+A18-D18) -> (3,562,854.97)
A19: 5,595,978.90 | B19: 2298010003 | C19: Provisión para Pagos de Bonificaciones | D19: 0 | E19: 763,280.88 | F19: =-(E19+A19-D19) -> (6,359,259.78)
A20: 2,321,519.65 | B20: 2198020001 | C20: Regalía Pascual por Pagar | D20: 0 | E20: 125,594.89 | F20: (2,447,114.54)
A21: 580,443.18 | B21: 2103060001 | C21: Retenciones Impositivas por Pagar | D21: 439,160.68 | E21: 184,236.27 | F21: (325,518.77)
A22: (4,149,847.80) | B22: 3201 | C22: Capital Institucional | E22: 9,840,640.21 | F22: (5,690,792.41)
A23: 16,080,625.96 | B23: 320301 | C23: Resultados de Ejercicios Anteriores | F23: (16,080,625.96)
B24: 4102980998 | C24: Otros Ingresos | D24: 0 | E24: 10,450,764.46 | F24: (10,450,764.46)
B25: 51010200020001 | C25: Alimentos y Productos Agroforestales | D25: 34,408.80 | E25: 0 | F25: =D25 -> 34,408.80
B26: 51010100070002 | C26: Bonificaciones | D26: 763,280.88 | E26: 0 | F26: =D26 -> 763,280.88
B27: 51010200020004 | C27: Combustibles, Lubricantes, Productos quimicos y Conexos | D27: 444,140.28 | E27: 0 | F27: 444,140.28
B28: 510102000109990001 | C28: Comisiones y Gastos Bancarios | D28: 11,019.09 | E28: 0 | F28: 11,019.09
B29: 51010200010008 | C29: Conservación, Reparaciones menores y Contrucciones Temporales | D29: 181,555.11 | E29: 0 | F29: 181,555.11
B30: 5101010080002 | C30: Contribuciones al Seguro de Pensiones | D30: 153,756.62 | E30: 0 | F30: 153,756.62
B31: 5101010080003 | C31: Contribuciones al Seguro de Riesgo Laboral | D31: 25,987.02 | E31: 0 | F31: 25,987.02
B32: 51010100080001 | C32: Contribuciones al Seguro de Salud | D32: 153,540.05 | E32: 0 | F32: 153,540.05
B33: 5101010004 | C33: Jornales | D33: 13,900.00 | E33: 0 | F33: 13,900.00
B34: 51010200020007 | C34: Productos y Utiles Varios | D34: 1,027,679.69 | E34: 0 | F34: 1,027,679.69
B35: 51010200010003 | C35: Públicidad , Impresiones y Encuadernaciones | D35: 11,800.00 | E35: 0 | F35: 11,800.00 | G35: =SUM(F35+F34+F27+F25) -> 1,518,028.77
B36: 51010100070001 | C36: Regalía Pascual | D36: 125,594.89 | E36: 0 | F36: 125,594.89
B37: 51010200010001 | C37: Servicios de Comunicaciones | D37: 3,000.00 | E37: 0 | F37: 3,000.00
B38: 5101010002 | C38: Sueldo Personal Temporero | D38: 72,196.30 | E38: 0 | F38: 72,196.30
B39: 51010100010001 | C39: Sueldos Fijos | D39: 1,534,399.96 | E39: 0 | F39: 1,534,399.96 | G39: =SUM(F39+F38+F36+F32+F31+F30+F26) -> 2,828,755.72
B40: 51010200010004 | C40: Viaticos Dentro y Fuera del País | D40: 100,650.00 | E40: 0 | F40: 100,650.00 | G40: =SUM(F40+F37+F33) -> 117,550.00
C41: TOTAL | D41: =SUM(D8:D40) -> 30,291,245.36 | E41: =SUM(E8:E40) -> 30,291,245.36 | F41: =SUM(F8:F40) -> 0
D44: =D41-E41 -> 0
F45: =SUM(F25:F40) -> 4,656,908.69

Sheet Balanza JUNIO 2025 (hidden)
A3: BALANZA DE COMPROBACION
A4: Del ejercicio terminado de Junio 2025
A5: (Valores en RD$)
A7: SALDO INICIAL | B7: CUENTA | C7: CONCEPTO | D7: DEBITO | E7: CREDITO | F7: BALANCE
A8: 347.92 | B8: 1101020702 | C8: FONDO OPERATIVO # 110207192-4 | D8: 3,941,303.16 | E8: 3,935,540.25 | F8: =A8+D8-E8 -> 6,110.83
A9: 102.34 | B9: 1101020704 | C9: MANTENIMIENTO DE CLINICA #110207193-2 | D9: 0 | E9: 102.34 | F9: =A9+D9-E9 -> 0.00
A10: 14,268,817.64 | B10: 1101020701 | C10: VENTAS DE SERVICIOS (FONDOS SENASA) #110205793-0 | D10: 9,022,034.87 | E10: 11,194,356.19 | F10: 12,096,496.32 | G10: =SUM(F8:F10) -> 12,102,607.15
B11: 110601 | C11: Existencia de Bienes de Cambios y Consumo | D11: 8,537,583.59 | F11: 8,537,583.59
B12: 110602 | C12: Existencias de Productos Terminados y en Proceso | D12: 1,061,420.82 | F12: 1,061,420.82 | G12: =SUM(F11:F12) -> 9,599,004.41
A13: 1,672,241.70 | B13: 1206010003 | C13: Equipo de Transporte, Tracción y Elevación | F13: 1,672,241.70
A14: 3,858,587.32 | B14: 1206010004 | C14: Equipos de Computación | F14: 3,858,587.32
A15: 6,272,052.05 | B15: 1206010005 | C15: Equipos Médicos, Sanitarios y Veterinarios | F15: 6,272,052.05
A16: 2,524,486.37 | B16: 1206010007 | C16: Equipos y Muebles para Oficinas | F16: 2,524,486.37 | G16: =SUM(F13:F16) -> 14,327,367.44
B17: 2103060002 | C17: Deducciones Personales a Pagar | D17: 133,014.30 | E17: 133,014.30 | F17: =-(E17+A17-D17) -> 0
A18: 2,306,463.10 | B18: 2103020002 | C18: Proveedores Directos Externos a Pagar a Corto Plazo | D18: 12,359,833.08 | E18: 16,877,559.08 | F18: (6,824,189.10)
A19: 4,832,698.02 | B19: 2298010003 | C19: Provisión para Pagos de Bonificaciones | D19: 0 | E19: 763,280.88 | F19: (5,595,978.90)
A20: 2,195,924.76 | B20: 2198020001 | C20: Regalía Pascual por Pagar | D20: 0 | E20: 125,594.89 | F20: (2,321,519.65)
A21: 521,984.91 | B21: 2103060001 | C21: Retenciones Impositivas por Pagar | D21: 517,235.97 | E21: 575,694.24 | F21: (580,443.18)
A22: 3,851,179.60 | B22: 3201 | C22: Capital Institucional | D22: 8,823,961.80 | E22: 9,599,004.41 | F22: (4,626,222.21)
A23: 14,888,384.95 | B23: 320301 | C23: Resultados de Ejercicios Anteriores | F23: (14,888,384.95)
B24: 4102980003 | C24: Ingresos por Contribuciones | D24: 0 | E24: 3,941,303.16 | F24: (3,941,303.16)
B25: 4102980998 | C25: Otros Ingresos | D25: 0 | E25: 9,022,034.87 | F25: (9,022,034.87) | G25: =SUM(F24:F25) -> (12,963,338.03)
B26: 51010200020001 | C26: Alimentos y Productos Agroforestales | D26: 221,225.00 | E26: 0 | F26: =D26 -> 221,225.00
B27: 51010200010006 | C27: Alquileres | D27: 16,500.00 | E27: 0 | F27: =D27 -> 16,500.00
B28: 51010100070002 | C28: Bonificaciones | D28: 763,280.88 | E28: 0 | F28: 763,280.88
B29: 51010200020004 | C29: Combustibles, Lubricantes, Productos quimicos y Conexos | D29: 715,475.64 | E29: 0 | F29: 715,475.64
B30: 510102000109990001 | C30: Comisiones y Gastos Bancarios | D30: 23,620.57 | E30: 0 | F30: 23,620.57
B31: 51010200010008 | C31: Conservación, Reparaciones menores y Contrucciones Temporales | D31: 4,211,215.26 | E31: 0 | F31: 4,211,215.26
B32: 5101010080002 | C32: Contribuciones al Seguro de Pensiones | D32: 153,614.62 | E32: 0 | F32: 153,614.62
B33: 5101010080003 | C33: Contribuciones al Seguro de Riesgo Laboral | D33: 25,963.02 | E33: 0 | F33: 25,963.02
B34: 51010100080001 | C34: Contribuciones al Seguro de Salud | D34: 153,398.25 | E34: 0 | F34: 153,398.25
B35: 5101010004 | C35: Jornales | D35: 310,800.00 | E35: 0 | F35: 310,800.00
B36: 5101010998 | C36: Otros Servicios Personales | D36: 34,810.00 | E36: 0 | F36: 34,810.00
B37: 51010200020007 | C37: Productos y Utiles Varios | D37: 3,151,689.43 | E37: 0 | F37: 3,151,689.43 | G37: =SUM(F37+F36+F29+F26) -> 4,123,200.07
B38: 51010100070001 | C38: Regalía Pascual | D38: 125,594.89 | E38: 0 | F38: 125,594.89
B39: 5101010002 | C39: Sueldo Personal Temporero | D39: 32,618.40 | E39: 0 | F39: 32,618.40
B40: 51010100010001 | C40: Sueldos Fijos | D40: 1,550,641.06 | E40: 0 | F40: 1,550,641.06 | G40: =SUM(F40+F39+F38+F34+F33+F32+F28) -> 2,805,111.12
B41: 51010200010004 | C41: Viaticos Dentro y Fuera del País | D41: 280,650.00 | E41: 0 | F41: 280,650.00 | G41: =SUM(F41+F35+F27) -> 607,950.00
C42: TOTAL | D42: =SUM(D8:D41) -> 56,167,484.61 | E42: =SUM(E8:E41) -> 56,167,484.61 | F42: =SUM(F8:F41) -> 0.00
D44: =D42-E42 -> 0 | F44: =SUM(F26:F41) -> 11,771,097.02

Sheet Balanza Mayo 2025 (hidden)
A2: BALANZA DE COMPROBACION
A3: Del ejercicio terminado de Mayo 2025
A4: (Valores en RD$)
A7: SALDO INICIAL | B7: CUENTA | C7: CONCEPTO | D7: DEBITO | E7: CREDITO | F7: BALANCE
A8: 250.31 | B8: 1101020702 | C8: FONDO OPERATIVO # 110207192-4 | D8: 1,971,448.00 | E8: 1,971,350.39 | F8: =A8+D8-E8 -> 347.92
A9: 427.34 | B9: 1101020704 | C9: MANTENIMIENTO DE CLINICA #110207193-2 | D9: 0 | E9: 325.00 | F9: =A9+D9-E9 -> 102.34
A10: 15,888,055.35 | B10: 1101020701 | C10: VENTAS DE SERVICIOS (FONDOS SENASA) #110205793-0 | D10: 8,585,571.80 | E10: 10,204,809.51 | F10: 14,268,817.64 | G10: =SUM(F8:F10) -> 14,269,267.90
B11: 110601 | C11: Existencia de Bienes de Cambios y Consumo | D11: 7,997,505.69 | F11: 7,997,505.69
B12: 110602 | C12: Existencias de Productos Terminados y en Proceso | F12: 0
A13: 1,672,241.70 | B13: 1206010003 | C13: Equipo de Transporte, Tracción y Elevación | F13: 1,672,241.70
A14: 4,007,893.56 | B14: 1206010004 | C14: Equipos de Computación | F14: 4,007,893.56
A15: 6,470,031.65 | B15: 1206010005 | C15: Equipos Médicos, Sanitarios y Veterinarios | F15: 6,470,031.65
A16: 2,992,414.48 | B16: 1206010007 | C16: Equipos y Muebles para Oficinas | F16: 2,992,414.48 | G16: =SUM(F13:F16) -> 15,142,581.39
B17: 2103060002 | C17: Deducciones Personales a Pagar | D17: 134,196.30 | E17: 134,196.30 | F17: =-(E17+A17-D17) -> 0
A18: 7,317,451.65 | B18: 2103020002 | C18: Proveedores Directos Externos a Pagar a Corto Plazo | D18: 7,902,765.94 | E18: 2,891,777.39 | F18: (2,306,463.10)
A19: 4105785.62 | B19: 2298010003 | C19: Provisión para Pagos de Bonificaciones | D19: 36,368.48 | E19: 763,280.88 | F19: (4,832,698.02)
A20: 2070329.87 | B20: 2198020001 | C20: Regalía Pascual por Pagar | D20: 0 | E20: 125,594.89 | F20: (2,195,924.76)
A21: 767824.7 | B21: 2103060001 | C21: Retenciones Impositivas por Pagar | D21: 676,406.35 | E21: 430,566.56 | F21: (521,984.91)
A22: 4,666,393.55 | B22: 3201 | C22: Capital Institucional | E22: 7,997,505.69 | F22: (12,663,899.24)
A23: 12,103,529.00 | B23: 320301 | C23: Resultados de Ejercicios Anteriores | F23: (12,103,529.00)
B24: 4102980998 | C24: Otros Ingresos | D24: 0 | E24: 10,557,019.80 | F24: (10,557,019.80)
B25: 51010200020001 | C25: Alimentos y Productos Agroforestales | D25: 240,732.66 | E25: 0 | F25: =D25 -> 240,732.66
B26: 51010100070002 | C26: Bonificaciones | D26: 1,551,086.25 | E26: 0 | F26: =D26 -> 1,551,086.25
B27: 51010200020004 | C27: Combustibles, Lubricantes, Productos quimicos y Conexos | D27: 103,861.30 | E27: 0 | F27: 103,861.30
B28: 510102000109990001 | C28: Comisiones y Gastos Bancarios | D28: 19,782.75 | E28: 0 | F28: 19,782.75
B29: 51010200010008 | C29: Conservación, Reparaciones menores y Contrucciones Temporales | D29: 273,827.00 | E29: 0 | F29: 273,827.00
B30: 5101010080002 | C30: Contribuciones al Seguro de Pensiones | D30: 155,034.62 | E30: 0 | F30: 155,034.62
B31: 5101010080003 | C31: Contribuciones al Seguro de Riesgo Laboral | D31: 26,203.02 | E31: 0 | F31: 26,203.02
B32: 51010100080001 | C32: Contribuciones al Seguro de Salud | D32: 154,816.25 | E32: 0 | F32: 154,816.25
B33: 5101010004 | C33: Jornales | D33: 17,000.00 | E33: 0 | F33: 17,000.00
B34: 5101010998 | C34: Otros Servicios Personales | D34: 87,999.96 | E34: 0 | F34: 87,999.96
B35: 51010200020007 | C35: Productos y Utiles Varios | D35: 3,085,915.47 | E35: 0 | F35: 3,085,915.47
B36: 51010200010003 | C36: Públicidad , Impresiones y Encuadernaciones | D36: 17,700.00 | E36: 0 | F36: 17,700.00 | G36: =SUM(F36+F35+F34+F27+F25) -> 3,536,209.39
B37: 51010100070001 | C37: Regalía Pascual | D37: 125,594.89 | E37: 0 | F37: 125,594.89
B38: 51010200010007 | C38: Seguros | D38: 104,902.96 | E38: 0 | F38: 104,902.96
B39: 510102000109990000 | C39: Servicios Técnicos Profesionales | D39: 87,999.96 | E39: 0 | F39: 87,999.96
B40: 5101010002 | C40: Sueldo Personal Temporero | D40: 92,147.15 | E40: 0 | F40: 92,147.15
B41: 51010100010001 | C41: Sueldos Fijos | D41: 1,541,207.61 | E41: 0 | F41: 1,541,207.61 | G41: =SUM(F41+F40+F37+F32+F31+F30+F26) -> 3,646,089.79
B42: 51010200010004 | C42: Viaticos Dentro y Fuera del País | D42: 86,352.00 | E42: 0 | F42: 86,352.00 | G42: =SUM(F42+F39+F38+F33) -> 296,254.92
C43: TOTAL | D43: =SUM(D8:D42) -> 35,076,426.41 | E43: =SUM(E8:E42) -> 35,076,426.41 | F43: =SUM(F8:F42) -> (0.00)
D47: =D43-E43 -> 0 | F47: =SUM(F25:F42) -> 7,772,163.85

Sheet Balanza Abril 2025 (hidden)
A2: BALANZA DE COMPROBACION
A3: Del ejercicio terminado de Abril 2025
A4: (Valores en RD$)
A7: SALDO INICIAL | B7: CUENTA | C7: CONCEPTO | D7: DEBITO | E7: CREDITO | F7: BALANCE
A8: 575.31 | B8: 1101020702 | C8: FONDO OPERATIVO # 110207192-4 | D8: 0 | E8: 325.00 | F8: =A8+D8-E8 -> 250.31
B9: 1101010002 | C9: Caja Chica | D9: 30,000.00 | E9: 0 | F9: =A9+D9-E9 -> 30,000.00
A10: 752.34 | B10: 1101020704 | C10: MANTENIMIENTO DE CLINICA #110207193-2 | D10: 0 | E10: 325.00 | F10: 427.34
A11: 25,214,931.13 | B11: 1101020701 | C11: VENTAS DE SERVICIOS (FONDOS SENASA) #110205793-0 | D11: 481,307.58 | E11: 9,808,183.36 | F11: 15,888,055.35 | G11: =SUM(F8:F11) -> 15,918,733.00
B12: 110601 | C12: Existencia de Bienes de Cambios y Consumo | D12: 4,698,888.50 | F12: 4,698,888.50
B13: 110602 | C13: Existencias de Productos Terminados y en Proceso | F13: 0
B14: 1206010003 | C14: Equipo de Transporte, Tracción y Elevación | D14: 1,672,241.70 | F14: 1,672,241.70
B15: 1206010004 | C15: Equipos de Computación | D15: 6,139,314.34 | F15: 6,139,314.34
B16: 1206010005 | C16: Equipos Médicos, Sanitarios y Veterinarios | D16: 7,604,387.16 | F16: 7,604,387.16
B17: 1206010007 | C17: Equipos y Muebles para Oficinas | D17: 1,930,481.83 | F17: 1,930,481.83 | G17: =SUM(F14:F17) -> 17,346,425.03
A18: 2,977,286.13 | B18: 2103020002 | C18: Proveedores Directos Externos a Pagar a Corto Plazo | D18: 2,990,262.04 | E18: 7,330,427.56 | F18: =-(E18+A18-D18) -> (7,317,451.65)
A19: 8,128,345.09 | B19: 2298010003 | C19: Provisión para Pagos de Bonificaciones | D19: 4,785,840.35 | E19: 763,280.88 | F19: (4,105,785.62)
A20: 1,944,734.98 | B20: 2198020001 | C20: Regalía Pascual por Pagar | D20: 0 | E20: 125,594.89 | F20: (2,070,329.87)
A21: 950,304.84 | B21: 2103060001 | C21: Retenciones Impositivas por Pagar | D21: 286,809.02 | E21: 104,328.88 | F21: (767,824.70)
A22: (10,446,188.15) | B22: 3201 | C22: Capital Institucional | E22: 22,045,313.53 | F22: (11,599,125.38)
A23: 21,661,775.89 | B23: 320301 | C23: Resultados de Ejercicios Anteriores | F23: (21,661,775.89)
B24: 4102980998 | C24: Otros Ingresos | D24: 0 | E24: 481,307.58 | F24: (481,307.58)
B25: 51010200020001 | C25: Alimentos y Productos Agroforestales | D25: 179,673.49 | E25: 0 | F25: =D25 -> 179,673.49
B26: 51010100070002 | C26: Bonificaciones | D26: 763,280.88 | E26: 0 | F26: =D26 -> 763,280.88
B27: 51010200020004 | C27: Combustibles, Lubricantes, Productos quimicos y Conexos | D27: 1,800,515.41 | E27: 0 | F27: 1,800,515.41
B28: 510102000109990001 | C28: Comisiones y Gastos Bancarios | D28: 15,767.35 | E28: 0 | F28: 15,767.35
B29: 51010200010008 | C29: Conservación, Reparaciones menores y Contrucciones Temporales | D29: 494,886.43 | E29: 0 | F29: 494,886.43
B30: 5101010004 | C30: Jornales | D30: 13,200.00 | E30: 0 | F30: 13,200.00
B31: 51010200020007 | C31: Productos y Utiles Varios | D31: 5,031,047.34 | E31: 0 | F31: 5,031,047.34
B32: 51010200010003 | C32: Públicidad , Impresiones y Encuadernaciones | D32: 11,151.00 | E32: 0 | F32: 11,151.00
B33: 51010100070001 | C33: Regalía Pascual | D33: 125,594.89 | E33: 0 | F33: 125,594.89
B34: 51010200010007 | C34: Seguros | D34: 104,902.96 | E34: 0 | F34: 104,902.96 | G34: =SUM(F34+F30) -> 118,102.96
B35: 510102000109990000 | C35: Servicios Funerarios y Gastos Conexos | D35: 4,720.00 | E35: 0 | F35: 4,720.00 | G35: =SUM(F35+F32+F31+F27+F25) -> 7,027,107.24
B36: 5101010002 | C36: Sueldo Personal Temporero | D36: 85,000.00 | E36: 0 | F36: 85,000.00
B37: 51010100010001 | C37: Sueldos Fijos | D37: 1,409,814.41 | E37: 0 | F37: 1,409,814.41 | G37: =SUM(F37+F36+F33+F26) -> 2,383,690.18
C38: TOTAL | D38: =SUM(D8:D37) -> 40,659,086.68 | E38: =SUM(E8:E37) -> 40,659,086.68 | F38: =SUM(F8:F37) -> (0.00)
D42: =D38-E38 -> 0 | F42: =SUM(F25:F37) -> 10,039,554.16

Sheet Balanza Marzo 2025 (hidden)
A3: BALANZA DE COMPROBACION
A4: Del ejercicio terminado de Marzo 2025
A5: (Valores en RD$)
A7: SALDO INICIAL | B7: CUENTA | C7: CONCEPTO | D7: DEBITO | E7: CREDITO | F7: BALANCE
A8: 900.31 | B8: 1101020702 | C8: FONDO OPERATIVO # 110207192-4 | D8: 0 | E8: 325.00 | F8: =A8+D8-E8 -> 575.31
A9: 0 | B9: 1101010002 | C9: Caja Chica | D9: 30,000.00 | E9: 30,000.00 | F9: =A9+D9-E9 -> 0
A10: 1077.34 | B10: 1101020704 | C10: MANTENIMIENTO DE CLINICA #110207193-2 | D10: 0 | E10: 325.00 | F10: 752.34
A11: 25954661.18 | B11: 1101020701 | C11: VENTAS DE SERVICIOS (FONDOS SENASA) #110205793-0 | D11: 8,280,261.30 | E11: 9,019,991.35 | F11: 25,214,931.13 | G11: =SUM(F8:F11) -> 25,216,258.78
B12: 110601 | C12: Existencia de Bienes de Cambios y Consumo | D12: 4,672,718.85 | F12: 4,672,718.85
B13: 110602 | C13: Existencias de Productos Terminados y en Proceso | F13: 0
A14: 1,756,259.94 | B14: 1206010003 | C14: Equipo de Transporte, Tracción y Elevación | F14: 1,756,259.94
A15: 6,070,784.41 | B15: 1206010004 | C15: Equipos de Computación | F15: 6,070,784.41
A16: 7,314,572.22 | B16: 1206010005 | C16: Equipos Médicos, Sanitarios y Veterinarios | F16: 7,314,572.22
A17: 2,482,353.73 | B17: 1206010007 | C17: Equipos y Muebles para Oficinas | F17: 2,482,353.73 | G17: =SUM(F14:F17) -> 17,623,970.30
B18: 2103060002 | C18: Deducciones Personales a Pagar | D18: 271,938.60 | E18: 271,938.60 | F18: =-(E18+A18-D18) -> 0
A19: 1,897,881.54 | B19: 2103020002 | C19: Proveedores Directos Externos a Pagar a Corto Plazo | D19: 6,426,858.10 | E19: 7,506,262.69 | F19: (2,977,286.13)
A20: 7,365,064.21 | B20: 2298010003 | C20: Provisión para Pagos de Bonificaciones | D20: 0 | E20: 763,280.88 | F20: (8,128,345.09)
A21: 1,819,140.09 | B21: 2198020001 | C21: Regalía Pascual por Pagar | D21: 0 | E21: 125,594.89 | F21: (1,944,734.98)
A22: 848,594.65 | B22: 2103060001 | C22: Retenciones Impositivas por Pagar | D22: 185,098.84 | E22: 286,809.03 | F22: (950,304.84)
A23: 19,799,427.64 | B23: 3201 | C23: Capital Institucional | E23: 4,672,718.85 | F23: (24,472,146.49)
A24: 11,850,501.00 | B24: 320301 | C24: Resultados de Ejercicios Anteriores | F24: (11,850,501.00)
B25: 4102980998 | C25: Otros Ingresos | D25: 0 | E25: 8,280,261.30 | F25: (8,280,261.30)
B26: 51010200020001 | C26: Alimentos y Productos Agroforestales | D26: 287,028.31 | E26: 0 | F26: =D26 -> 287,028.31
B27: 51010200010006 | C27: Alquileres | D27: 622,150.54 | E27: 0 | F27: =D27 -> 622,150.54
B28: 51010100070002 | C28: Bonificaciones | D28: 763,280.88 | E28: 0 | F28: 763,280.88
B29: 51010200020004 | C29: Combustibles, Lubricantes, Productos quimicos y Conexos | D29: 4,005,080.72 | E29: 0 | F29: 4,005,080.72
B30: 510102000109990001 | C30: Comisiones y Gastos Bancarios | D30: 14,153.99 | E30: 0 | F30: 14,153.99
B31: 51010200010008 | C31: Conservación, Reparaciones menores y Contrucciones Temporales | D31: 453,834.55 | E31: 0 | F31: 453,834.55
B32: 5101010080002 | C32: Contribuciones al Seguro de Pensiones | D32: 314,329.24 | E32: 0 | F32: 314,329.24
B33: 5101010080003 | C33: Contribuciones al Seguro de Riesgo Laboral | D33: 53,126.04 | E33: 0 | F33: 53,126.04
B34: 51010100080001 | C34: Contribuciones al Seguro de Salud | D34: 313,886.50 | E34: 0 | F34: 313,886.50
B35: 5101010004 | C35: Jornales | D35: 6,900.00 | E35: 0 | F35: 6,900.00
B36: 51010200020007 | C36: Productos y Utiles Varios | D36: 2,328,760.58 | E36: 0 | F36: 2,328,760.58 | G36: =SUM(F36+F29+F26) -> 6,620,869.61
B37: 51010100070001 | C37: Regalía Pascual | D37: 125,594.89 | E37: 0 | F37: 125,594.89
B38: 51010200010001 | C38: Servicios de Comunicaciones | D38: 3,000.00 | E38: 0 | F38: 3,000.00 | G38: =SUM(F38+F35+F27) -> 632,050.54
B39: 5101010002 | C39: Sueldo Personal Temporero | D39: 80,000.00 | E39: 0 | F39: 80,000.00
B40: 51010100010001 | C40: Sueldos Fijos | D40: 1,709,014.66 | E40: 0 | F40: 1,709,014.66
B41: 51010100070004 | C41: Vacaciones | D41: 10,491.00 | E41: 0 | F41: 10,491.00 | G41: =SUM(F41+F40+F39+F37+F34+F33+F32+F28) -> 3,369,723.21
C42: TOTAL | D42: =SUM(D8:D41) -> 30,957,507.59 | E42: =SUM(E8:E41) -> 30,957,507.59 | F42: =SUM(F8:F41) -> (0.00)
D45: =D42-E42 -> 0 | F45: =SUM(F26:F41) -> 11,090,631.90

Sheet Balanza Febrero 2025 (hidden)
A3: BALANZA DE COMPROBACION
A4: Del ejercicio terminado de Febrero 2025
A5: (Valores en RD$)
A7: SALDO INICIAL | B7: CUENTA | C7: CONCEPTO | D7: DEBITO | E7: CREDITO | F7: BALANCE
A8: 1,225.31 | B8: 1101020702 | C8: FONDO OPERATIVO # 110207192-4 | D8: 0 | E8: 325.00 | F8: =A8+D8-E8 -> 900.31
A9: 1,402.34 | B9: 1101020704 | C9: MANTENIMIENTO DE CLINICA #110207193-2 | D9: 0 | E9: 325.00 | F9: =A9+D9-E9 -> 1,077.34
A10: 22,307,608.94 | B10: 1101020701 | C10: VENTAS DE SERVICIOS (FONDOS SENASA) #110205793-0 | D10: 8,018,566.10 | E10: 4,371,513.86 | F10: 25,954,661.18 | G10: =SUM(F8:F10) -> 25,956,638.83
B11: 110601 | C11: Existencia de Bienes de Cambios y Consumo | D11: 6,287,244.94 | F11: 6,287,244.94
B12: 110602 | C12: Existencias de Productos Terminados y en Proceso | F12: 0
A13: 1,756,259.94 | B13: 1206010003 | C13: Equipo de Transporte, Tracción y Elevación | F13: 1,756,259.94
A14: 6,070,784.41 | B14: 1206010004 | C14: Equipos de Computación | F14: 6,070,784.41
A15: 7,131,627.09 | B15: 1206010005 | C15: Equipos Médicos, Sanitarios y Veterinarios | D15: 128,242.40 | E15: 0 | F15: 7,259,869.49
A16: 2,325,762.66 | B16: 1206010007 | C16: Equipos y Muebles para Oficinas | F16: 2,325,762.66 | G16: =SUM(F13:F16) -> 17,412,676.50
B17: 2103060002 | C17: Deducciones Personales a Pagar | D17: 3,925.41 | E17: 0
A18: 1,554,562.14 | B18: 2103020002 | C18: Proveedores Directos Externos a Pagar a Corto Plazo | D18: 2,743,219.16 | E18: 3,086,538.56 | F18: =-(E18+A18-D18) -> (1,897,881.54)
A19: 6,601,783.33 | B19: 2298010003 | C19: Provisión para Pagos de Bonificaciones | D19: 0 | E19: 763,280.88 | F19: (7,365,064.21)
A20: 1,693,545.20 | B20: 2198020001 | C20: Regalía Pascual por Pagar | D20: 0 | E20: 125,594.89 | F20: (1,819,140.09)
A21: 734,599.02 | B21: 2103060001 | C21: Retenciones Impositivas por Pagar | D21: 0 | E21: 113,995.63 | F21: (848,594.65)
A22: 19,588,133.59 | B22: 3201 | C22: Capital Institucional | E22: 6,287,244.94 | F22: (25,875,378.53)
A23: 9,418,122.00 | B23: 320301 | C23: Resultados de Ejercicios Anteriores | F23: (9,418,122.00)
B24: 4102980998 | C24: Otros Ingresos | D24: 0 | E24: 8,018,566.10 | F24: (8,018,566.10)
B25: 51010200020001 | C25: Alimentos y Productos Agroforestales | D25: 170,377.50 | E25: 0 | F25: =D25 -> 170,377.50
B26: 51010100070002 | C26: Bonificaciones | D26: 763,280.88 | E26: 0 | F26: =D26 -> 763,280.88
B27: 51010200020004 | C27: Combustibles, Lubricantes, Productos quimicos y Conexos | D27: 661,915.76 | E27: 0 | F27: 661,915.76
B28: 510102000109990001 | C28: Comisiones y Gastos Bancarios | D28: 8,300.97 | E28: 0 | F28: 8,300.97
B29: 51010200010008 | C29: Conservación, Reparaciones menores y Contrucciones Temporales | D29: 765,286.79 | E29: 0 | F29: 765,286.79
B30: 5101010080002 | C30: Contribuciones al Seguro de Pensiones | D30: 4,260.00 | E30: 0 | F30: 4,260.00
B31: 5101010080003 | C31: Contribuciones al Seguro de Riesgo Laboral | D31: 1,053.88 | E31: 0 | F31: 1,053.88
B32: 51010100080001 | C32: Contribuciones al Seguro de Salud | D32: 4,254.00 | E32: 0 | F32: 4,254.00
B33: 5101010004 | C33: Jornales | D33: 4,600.00 | E33: 0 | F33: 4,600.00
B34: 51010100070003 | C34: Prestaciones Laborales | D34: 4,614.67 | E34: 0 | F34: 4,614.67
B35: 51010200020007 | C35: Productos y Utiles Varios | D35: 1,536,743.15 | E35: 0 | F35: 1,536,743.15 | G35: =SUM(F35+F27+F25) -> 2,369,036.41
B36: 51010100070001 | C36: Regalía Pascual | D36: 125,594.89 | E36: 0 | F36: 125,594.89
B37: 51010200010002 | C37: Servicios Básicos | D37: 16,993.80 | E37: 0 | F37: 16,993.80
B38: 51010200010001 | C38: Servicios de Comunicaciones | D38: 3,000.00 | E38: 0 | F38: 3,000.00
B39: 510102000109990000 | C39: Servicios Funerarios y Gastos Conexos | D39: 4,130.00 | E39: 0 | F39: 4,130.00
B40: 5101010002 | C40: Sueldo Personal Temporero | D40: 80,000.00 | E40: 0 | F40: 80,000.00
B41: 51010100010001 | C41: Sueldos Fijos | D41: 1,426,780.56 | E41: 0 | F41: 1,426,780.56 | G41: =SUM(F41+F40+F36+F34+F33+F32+F31+F30+F26) -> 2,414,438.88
B42: 51010200010005 | C42: Transporte y Almacenaje | D42: 5,000.00 | E42: 0 | F42: 5,000.00 | G42: =SUM(F42+F39+F38+F37) -> 29,123.80
C43: TOTAL | D43: =SUM(D8:D42) -> 22,767,384.86 | E43: =SUM(E8:E42) -> 22,767,384.86 | F43: =SUM(F8:F42) -> 0

Sheet Balanza Enero 2025 (hidden)
A3: BALANZA DE COMPROBACION
A4: Del ejercicio terminado de ENERO 2025
A5: (Valores en RD$)
A8: SALDO INICIAL | B8: CUENTA | C8: CONCEPTO | D8: DEBITO | E8: CREDITO | F8: BALANCE
A9: 1,550.31 | B9: 1101020702 | C9: FONDO OPERATIVO # 110207192-4 | D9: 0 | E9: 325.00 | F9: =A9+D9-E9 -> 1,225.31
A10: 1,727.34 | B10: 1101020704 | C10: MANTENIMIENTO DE CLINICA #110207193-2 | D10: 0 | E10: 325.00 | F10: =A10+D10-E10 -> 1,402.34
A11: 16,815,092.98 | B11: 1101020701 | C11: VENTAS DE SERVICIOS (FONDOS SENASA) #110205793-0 | D11: 9,579,824.25 | E11: 4,087,308.29 | F11: 22,307,608.94 | G11: =SUM(F9:F11) -> 22,310,236.59
B12: 110601 | C12: Existencia de Bienes de Cambios y Consumo | D12: 5,624,726.91 | F12: 5,624,726.91
B13: 110602 | C13: Existencias de Productos Terminados y en Proceso | F13: 0
A14: 1,756,631.47 | B14: 1206010003 | C14: Equipo de Transporte, Tracción y Elevación | F14: 1,756,631.47
A15: 6,070,784.41 | B15: 1206010004 | C15: Equipos de Computación | F15: 6,070,784.41
A16: 7,822,325.82 | B16: 1206010005 | C16: Equipos Médicos, Sanitarios y Veterinarios | F16: 7,822,325.82
A17: 1,998,465.04 | B17: 1206010007 | C17: Equipos y Muebles para Oficinas | F17: 1,998,465.04 | G17: =SUM(F14:F17) -> 17,648,206.74
B18: 2103060002 | C18: Deducciones Personales a Pagar | D18: 135,969.30 | E18: 135,969.30 | F18: =-(E18+A18-D18) -> 0
A19: 779,718.32 | B19: 2103020002 | C19: Proveedores Directos Externos a Pagar a Corto Plazo | D19: 1,233,523.85 | E19: 2,008,367.67 | F19: (1,554,562.14)
A20: 5,838,502.45 | B20: 2298010003 | C20: Provisión para Pagos de Bonificaciones | D20: 0 | E20: 763,280.88 | F20: (6,601,783.33)
A21: 1,567,950.31 | B21: 2198020001 | C21: Regalía Pascual por Pagar | D21: 0 | E21: 125,594.89 | F21: (1,693,545.20)
A22: 1,217,779.72 | B22: 2103060001 | C22: Retenciones Impositivas por Pagar | D22: 554,283.90 | E22: 71,103.20 | F22: (734,599.02)
A23: 18,088,483.57 | B23: 3201 | C23: Capital Institucional | E23: 5,624,726.91 | F23: (23,713,210.48)
A24: 6,974,143.00 | B24: 320301 | C24: Resultados de Ejercicios Anteriores | F24: (6,974,143.00)
B25: 4102980998 | C25: Otros Ingresos | D25: 0 | E25: 9,579,824.25 | F25: (9,579,824.25)
B26: 51010200020001 | C26: Alimentos y Productos Agroforestales | D26: 219,192.50 | E26: 0 | F26: =D26 -> 219,192.50
B27: 51010200010006 | C27: Alquileres | D27: 97,930.00 | E27: 0 | F27: =D27 -> 97,930.00
B28: 51010100070002 | C28: Bonificaciones | D28: 763,280.88 | E28: 0 | F28: 763,280.88
B29: 51010200020004 | C29: Combustibles, Lubricantes, Productos quimicos y Conexos | D29: 107,900.00 | E29: 0 | F29: 107,900.00
B30: 510102000109990001 | C30: Comisiones y Gastos Bancarios | D30: 6,352.65 | E30: 0 | F30: 6,352.65
B31: 51010200010008 | C31: Conservación, Reparaciones menores y Contrucciones Temporales | D31: 39,243.82 | E31: 0 | F31: 39,243.82
B32: 5101010080002 | C32: Contribuciones al Seguro de Pensiones | D32: 157,164.62 | E32: 0 | F32: 157,164.62
B33: 5101010080003 | C33: Contribuciones al Seguro de Riesgo Laboral | D33: 25,456.24 | E33: 0 | F33: 25,456.24
B34: 51010100080001 | C34: Contribuciones al Seguro de Salud | D34: 156,943.25 | E34: 0 | F34: 156,943.25
B35: 5101010004 | C35: Jornales | D35: 28,800.00 | E35: 0 | F35: 28,800.00
B36: 51010100070003 | C36: Prestaciones Laborales | D36: 218,408.10 | E36: 0 | F36: 218,408.10
B37: 51010200020007 | C37: Productos y Utiles Varios | D37: 857,938.09 | E37: 0 | F37: 857,938.09
B38: 51010200010003 | C38: Públicidad , Impresiones y Encuadernaciones | D38: 455,303.00 | E38: 0 | F38: 455,303.00 | G38: =SUM(F38+F37+F29+F26) -> 1,640,333.59
B39: 51010100070001 | C39: Regalía Pascual | D39: 142,657.41 | E39: 0 | F39: 142,657.41
B40: 51010200010007 | C40: Seguros | D40: 9,000.00 | E40: 0 | F40: 9,000.00
B41: 51010200010002 | C41: Servicios Básicos | D41: 314,290.26 | E41: 0 | F41: 314,290.26
B42: 51010100010001 | C42: Sueldos Fijos | D42: 1,628,636.36 | E42: 0 | F42: 1,628,636.36 | G42: =SUM(F42+F39+F36+F34+F33+F32+F28) -> 3,092,546.86
B43: 51010200010005 | C43: Transporte y Almacenaje | D43: 40,000.00 | E43: 0 | F43: 40,000.00 | G43: =SUM(F43+F41+F40+F35+F27) -> 490,020.26
C44: TOTAL | D44: =SUM(D9:D43) -> 22,396,825.39 | E44: =SUM(E9:E43) -> 22,396,825.39 | F44: =SUM(F9:F43) -> 0.00
F46: =SUM(F26:F43) -> 5,268,497.18
D47: =D44-E44 -> 0

Sheet Balanza Diciembre 2024 (hidden)
A2: BALANZA DE COMPROBACION
A3: Del ejercicio terminado de Diciembre 2024
A4: (Valores en RD$)
A8: SALDO INICIAL | B8: CUENTA | C8: CONCEPTO | D8: DEBITO | E8: CREDITO | F8: BALANCE
A9: 1,875.31 | B9: 1101020702 | C9: FONDO OPERATIVO # 110207192-4 | D9: 0 | E9: 325.00 | F9: =A9+D9-E9 -> 1,550.31
B10: 1101010002 | C10: Caja Chica | D10: 31,600.00 | E10: 31,600.00 | F10: =A10+D10-E10 -> 0
A11: 261,137.15 | B11: 1101020704 | C11: MANTENIMIENTO DE CLINICA #110207193-2 | D11: 3,929,720.92 | E11: 4,189,130.73 | F11: 1,727.34
A12: 21,820,357.31 | B12: 1101020701 | C12: VENTAS DE SERVICIOS (FONDOS SENASA) #110205793-0 | D12: 8,419,055.95 | E12: 13,424,320.28 | F12: 16,815,092.98 | G12: =SUM(F9:F12) -> 16,818,370.63
B13: 110601 | C13: Existencia de Bienes de Cambios y Consumo | D13: 10,315,028.76 | F13: 10,315,028.76
B14: 110602 | C14: Existencias de Productos Terminados y en Proceso | F14: 0
A15: 1,672,241.70 | B15: 1206010003 | C15: Equipo de Transporte, Tracción y Elevación | F15: 1,672,241.70
A16: 6,070,784.41 | B16: 1206010004 | C16: Equipos de Computación | F16: 6,070,784.41
A17: 7,996,520.05 | B17: 1206010005 | C17: Equipos Médicos, Sanitarios y Veterinarios | F17: 7,996,520.05
A18: 2,233,903.85 | B18: 1206010007 | C18: Equipos y Muebles para Oficinas | F18: 2,233,903.85 | G18: =SUM(F15:F18) -> 17,973,450.01
B19: 2103060002 | C19: Deducciones Personales a Pagar | D19: 273,120.60 | E19: 273,120.60 | F19: =-(E19+A19-D19) -> 0
A20: 2,451,254.70 | B20: 2103020002 | C20: Proveedores Directos Externos a Pagar a Corto Plazo | D20: 12,239,953.17 | E20: 10,568,416.79 | F20: (779,718.32)
A21: 5,075,221.57 | B21: 2298010003 | C21: Provisión para Pagos de Bonificaciones | E21: 763,280.88 | F21: (5,838,502.45)
A22: 1,443,561.41 | B22: 2198020001 | C22: Regalía Pascual por Pagar | D22: 0 | E22: 124,388.90 | F22: (1,567,950.31)
A23: 1,105,929.32 | B23: 2103060001 | C23: Retenciones Impositivas por Pagar | D23: 422,101.13 | E23: 533,951.53 | F23: (1,217,779.72)
A24: 29,980,852.78 | B24: 3201 | C24: Capital Institucional | D24: 7,255,798.93 | E24: 10,315,028.76 | F24: (33,040,082.61)
B25: 4102980998 | C25: Otros Ingresos | D25: 0 | E25: 12,348,776.87 | F25: (12,348,776.87)
B26: 51010200020001 | C26: Alimentos y Productos Agroforestales | D26: 327,273.87 | E26: 0 | F26: =D26 -> 327,273.87
B27: 51010200010006 | C27: Alquileres | D27: 234,174.00 | E27: 0 | F27: =D27 -> 234,174.00
B28: 51010200020004 | C28: Combustibles, Lubricantes, Productos quimicos y Conexos | D28: 432,129.75 | E28: 0 | F28: 432,129.75 | G28: =SUM(F28+F26) -> 759,403.62
B29: 510102000109990001 | C29: Comisiones y Gastos Bancarios | D29: 26,124.26 | E29: 0 | F29: 26,124.26
B30: 51010200010008 | C30: Conservación, Reparaciones menores y Contrucciones Temporales | D30: 1,223,520.03 | E30: 0 | F30: 1,223,520.03
B31: 5101010080002 | C31: Contribuciones al Seguro de Pensiones | D31: 315,749.24 | E31: 0 | F31: 315,749.24
B32: 5101010080003 | C32: Contribuciones al Seguro de Riesgo Laboral | D32: 53,366.04 | E32: 0 | F32: 53,366.04
B33: 51010100080001 | C33: Contribuciones al Seguro de Salud | D33: 315,304.50 | E33: 0 | F33: 315,304.50
B34: 51010100070002 | C34: Bonificaciones | D34: 763,280.88 | F34: 763,280.88
B35: 5101010004 | C35: Jornales | D35: 6,350.00 | E35: 0 | F35: 6,350.00
B36: 51010100070003 | C36: Prestaciones Laborales | D36: 62,055.49 | E36: 0 | F36: 62,055.49
B37: 51010200020007 | C37: Productos y Utiles Varios | D37: 1,775,807.78 | E37: 0 | F37: 1,775,807.78 | G37: =SUM(F37+F28+F26) -> 2,535,211.40
B38: 51010100070001 | C38: Regalía Pascual | D38: 534,929.26 | E38: 0 | F38: 534,929.26
B39: 51010200010007 | C39: Seguros | D39: 4,500.00 | E39: 0 | F39: 4,500.00
B40: 51010200010001 | C40: Servicios de Comunicaciones | D40: 6,000.00 | E40: 0 | F40: 6,000.00
B41: 5101010002 | C41: Sueldo Personal Temporero | D41: 550,500.00 | E41: 0 | F41: 550,500.00
B42: 51010100010001 | C42: Sueldos Fijos | D42: 2,777,469.34 | E42: 0 | F42: 2,777,469.34
B43: 51010200010005 | C43: Transporte y Almacenaje | D43: 39,600.00 | E43: 0 | F43: 39,600.00
B44: 51010100070004 | C44: Vacaciones | D44: 7,826.44 | E44: 0 | F44: 7,826.44 | G44: =SUM(F44+F42+F41+F38+F36+F33+F32+F31+F34) -> 5,380,481.19
B45: 51010200010004 | C45: Viaticos Dentro y Fuera del País | D45: 230,000.00 | E45: 0 | F45: 230,000.00 | G45: =SUM(F45+F43+F39+F35+F40+F27) -> 520,624.00
C46: TOTAL | D46: =SUM(D9:D45) -> 52,572,340.34 | E46: =SUM(E9:E45) -> 52,572,340.34 | F46: =SUM(F9:F45) -> (0.00)
F49: =SUM(F26:F45) -> 9,685,960.88
D50: =D46-E46 -> 0

Sheet Balanza Noviembre 2024 (hidden)
A2: BALANZA DE COMPROBACION
A3: Del ejercicio terminado de Noviembre 2024
A4: (Valores en RD$)
A7: SALDO INICIAL | B7: CUENTA | C7: CONCEPTO | D7: DEBITO | E7: CREDITO | F7: BALANCE
A8: 186,545.40 | B8: 1101020702 | C8: FONDO OPERATIVO # 110207192-4 | D8: 185,524.66 | E8: 370,194.75 | F8: =A8+D8-E8 -> 1,875.31
B9: 1101010002 | C9: Caja Chica | D9: 47,400.00 | E9: 47,400.00 | F9: =A9+D9-E9 -> 0
A10: 1,100.05 | B10: 1101020704 | C10: MANTENIMIENTO DE CLINICA #110207193-2 | D10: 8,134,291.65 | E10: 7,874,254.55 | F10: 261,137.15
A11: 19,284,358.04 | B11: 1101020701 | C11: VENTAS DE SERVICIOS (FONDOS SENASA) #110205793-0 | D11: 9,620,479.95 | E11: 7,084,480.68 | F11: 21,820,357.31 | G11: =SUM(F8:F11) -> 22,083,369.77
B12: 110601 | C12: Existencia de Bienes de Cambios y Consumo | F12: 0
B13: 110602 | C13: Existencias de Productos Terminados y en Proceso | D13: 5,531,281.00 | F13: 5,531,281.00
A14: 1,672,241.70 | B14: 1206010003 | C14: Equipo de Transporte, Tracción y Elevación | F14: 1,672,241.70
A15: 6,070,784.41 | B15: 1206010004 | C15: Equipos de Computación | F15: 6,070,784.41
A16: 9,767,959.14 | B16: 1206010005 | C16: Equipos Médicos, Sanitarios y Veterinarios | F16: 9,767,959.14
A17: 983,172.65 | B17: 1206010007 | C17: Equipos y Muebles para Oficinas | F17: 983,172.65 | G17: =SUM(F14:F17) -> 18,494,157.90
A18: 1.30 | B18: 2103060002 | C18: Deducciones Personales a Pagar | D18: 138,924.30 | E18: 138,923.00 | F18: =-(E18+A18-D18) -> 0
A19: 9,780,060.38 | B19: 2103020002 | C19: Proveedores Directos Externos a Pagar a Corto Plazo | D19: 12,689,630.65 | E19: 5,360,824.97 | F19: (2,451,254.70)
A20: 4,311,940.69 | B20: 2298010003 | C20: Provisión para Pagos de Bonificaciones | D20: 0 | E20: 763280.88 | F20: (5,075,221.57)
A21: 1,314,633.19 | B21: 2198020001 | C21: Regalía Pascual por Pagar | D21: 0 | E21: 128,928.22 | F21: (1,443,561.41)
A22: 889,447.94 | B22: 2103060001 | C22: Retenciones Impositivas por Pagar | D22: 409,987.75 | E22: 626,469.13 | F22: (1,105,929.32)
A23: 21,670,077.89 | B23: 3201 | C23: Capital Institucional | E23: 5,531,281.00 | F23: (27,201,358.89)
B24: 320301 | C24: Resultados de Ejercicios Anteriores | F24: 0
B25: 4102980003 | C25: Ingresos por Contribuciones | D25: 0 | E25: 440,137.39 | F25: (440,137.39)
B26: 4102980998 | C26: Otros Ingresos | D26: 0 | E26: 17,500,158.87 | F26: (17,500,158.87) | G26: =SUM(F25:F26) -> (17,940,296.26)
B27: 51010200020001 | C27: Alimentos y Productos Agroforestales | D27: 123,311.85 | E27: 0 | F27: =D27 -> 123,311.85
B28: 51010200010006 | C28: Alquileres | D28: 1,117,914.84 | E28: 0 | F28: =D28 -> 1,117,914.84
B29: 51010100070002 | C29: Bonificaciones | D29: 763,280.88 | E29: 0 | F29: 763,280.88
B30: 51010200020004 | C30: Combustibles, Lubricantes, Productos quimicos y Conexos | D30: 617,000.79 | E30: 0 | F30: 617,000.79
B31: 510102000109990001 | C31: Comisiones y Gastos Bancarios | D31: 23,316.17 | E31: 0 | F31: 23,316.17
B32: 51010200010008 | C32: Conservación, Reparaciones menores y Contrucciones Temporales | D32: 757,984.80 | E32: 0 | F32: 757,984.80
B33: 5101010080002 | C33: Contribuciones al Seguro de Pensiones | D33: 160,714.62 | E33: 0 | F33: 160,714.62
B34: 5101010080003 | C34: Contribuciones al Seguro de Riesgo Laboral | D34: 27,163.02 | E34: 0 | F34: 27,163.02
B35: 51010100080001 | C35: Contribuciones al Seguro de Salud | D35: 160,488.25 | E35: 0 | F35: 160,488.25
B36: 5101010004 | C36: Jornales | D36: 6,635.00 | E36: 0 | F36: 6,635.00
B37: 51010200020007 | C37: Productos y Utiles Varios | D37: 3,004,489.69 | E37: 0 | F37: 3,004,489.69 | G37: =SUM(F37+F30+F27) -> 3,744,802.33
B38: 51010100070001 | C38: Regalía Pascual | D38: 128,928.22 | E38: 0 | F38: 128,928.22
B39: 5101010002 | C39: Sueldo Personal Temporero | D39: 235,000.00 | E39: 0 | F39: 235,000.00
B40: 51010100010001 | C40: Sueldos Fijos | D40: 1,663,585.35 | E40: 0 | F40: 1,663,585.35 | G40: =SUM(F40+F38+F39+F35+F34+F33+F29) -> 3,139,160.34
B41: 51010200010005 | C41: Transporte y Almacenaje | D41: 47,400.00 | E41: 0 | F41: 47,400.00
B42: 51010200010004 | C42: Viaticos Dentro y Fuera del País | D42: 271,600.00 | E42: 0 | F42: 271,600.00 | G42: =SUM(F42+F41+F36+F28) -> 1,443,549.84
C43: TOTAL | D43: =SUM(D8:D42) -> 45,866,333.44 | E43: =SUM(E8:E42) -> 45,866,333.44 | F43: =SUM(F8:F42) -> (0.00)
D46: =D43-E43 -> 0 | F46: =SUM(F27:F42) -> 9,108,813.48

Sheet Balanza Octubre 2024 (hidden)
A2: BALANZA DE COMPROBACION
A3: Del ejercicio terminado de Octubre 2024
A4: (Valores en RD$)
A8: SALDO INICIAL | B8: CUENTA | C8: CONCEPTO | D8: DEBITO | E8: CREDITO | F8: BALANCE
A9: 1,011.79 | B9: 1101020702 | C9: FONDO OPERATIVO # 110207192-4 | D9: 368,521.78 | E9: 182,988.17 | F9: =A9+D9-E9 -> 186,545.40
A10: 10,889.38 | B10: 1101020704 | C10: MANTENIMIENTO DE CLINICA #110207193-2 | D10: 3,939,486.98 | E10: 3,949,276.31 | F10: =A10+D10-E10 -> 1,100.05
A11: 19,926,244.30 | B11: 1101020701 | C11: VENTAS DE SERVICIOS (FONDOS SENASA) #110205793-0 | D11: 8,347,381.80 | E11: 8,989,168.59 | F11: 19,284,457.51 | G11: =SUM(F9:F11) -> 19,472,102.96
B12: 110601 | C12: Existencia de Bienes de Cambios y Consumo | D12: 8,462,851.05 | F12: 8,462,851.05
B13: 110602 | C13: Existencias de Productos Terminados y en Proceso | F13: 0
A14: 1,685,176.07 | B14: 1206010003 | C14: Equipo de Transporte, Tracción y Elevación | F14: 1,685,176.07
A15: 6,070,784.41 | B15: 1206010004 | C15: Equipos de Computación | F15: 6,070,784.41
A16: 8,835,863.62 | B16: 1206010005 | C16: Equipos Médicos, Sanitarios y Veterinarios | F16: 8,835,863.62
A17: 1,669,800.59 | B17: 1206010007 | C17: Equipos y Muebles para Oficinas | F17: 1,669,800.59 | G17: =SUM(F14:F17) -> 18,261,624.69
A18: 13,685,933.84 | B18: 2103020002 | C18: Proveedores Directos Externos a Pagar a Corto Plazo | D18: 10,094,891.35 | E18: 6,189,017.89 | F18: =-(E18+A18-D18) -> (9,780,060.38)
A19: 3,575,912.39 | B19: 2298010003 | C19: Provisión para Pagos de Bonificaciones | D19: 27,252.58 | E19: 763,280.88 | F19: (4,311,940.69)
A20: 1,188,621.64 | B20: 2198020001 | C20: Regalía Pascual por Pagar | D20: 2,916.67 | E20: 128,928.22 | F20: (1,314,633.19)
A21: 843,474.73 | B21: 2103060001 | C21: Retenciones Impositivas por Pagar | D21: 375,814.21 | E21: 421,787.42 | F21: (889,447.94)
A22: 18,905,827.56 | B22: 3201 | C22: Capital Institucional | E22: 8,462,851.05 | F22: (27,368,678.61)
B23: 320301 | C23: Resultados de Ejercicios Anteriores | F23: 0
B24: 4102980003 | C24: Ingresos por Contribuciones | D24: 0 | E24: 3,939,486.98 | F24: (3,939,486.98)
B25: 4102980998 | C25: Otros Ingresos | D25: 0 | E25: 8,715,903.58 | F25: (8,715,903.58) | G25: =SUM(F24:F25) -> (12,655,390.56)
B26: 51010200020001 | C26: Alimentos y Productos Agroforestales | D26: 187,047.21 | E26: 0 | F26: =D26 -> 187,047.21
B27: 51010200010006 | C27: Alquileres | D27: 46,055.00 | E27: 0 | F27: =D27 -> 46,055.00
B28: 51010100070002 | C28: Bonificaciones | D28: 1,485,908.56 | E28: 0 | F28: 1,485,908.56
B29: 51010200020004 | C29: Combustibles, Lubricantes, Productos quimicos y Conexos | D29: 2,555,621.71 | E29: 0 | F29: 2,555,621.71
B30: 510102000109990001 | C30: Comisiones y Gastos Bancarios | D30: 21,108.41 | E30: 0 | F30: 21,108.41
B31: 51010200010008 | C31: Conservación, Reparaciones menores y Contrucciones Temporales | D31: 1,527,358.21 | E31: 0 | F31: 1,527,358.21
B32: 5101010004 | C32: Jornales | D32: 32,700.00 | E32: 0 | F32: 32,700.00
B33: 51010100070003 | C33: Prestaciones Laborales | D33: 20,000.00 | E33: 0 | F33: 20,000.00
B34: 51010200020007 | C34: Productos y Utiles Varios | D34: 2,115,854.56 | E34: 0 | F34: 2,115,854.56 | G34: =SUM(F34+F29+F26) -> 4,858,523.48
B35: 51010100070001 | C35: Regalía Pascual | D35: 128,928.22 | E35: 0 | F35: 128,928.22
B36: 51010200010002 | C36: Servicios Básicos | D36: 6,000.00 | E36: 0 | F36: 6,000.00
B37: 5101010002 | C37: Sueldo Personal Temporero | D37: 195,958.80 | E37: 0 | F37: 195,958.80
B38: 51010100010001 | C38: Sueldos Fijos | D38: 1,513,366.85 | E38: 0 | F38: 1,513,366.85
B39: 51010100070004 | C39: Vacaciones | D39: 1,615.14 | E39: 0 | F39: 1,615.14 | G39: =SUM(F39+F38+F37+F35+F33+F28) -> 3,345,777.57
B40: 51010200010004 | C40: Viaticos Dentro y Fuera del País | D40: 286,050.00 | E40: 0 | F40: 286,050.00 | G40: =SUM(F40+F36+F32+F27) -> 370,805.00
C41: TOTAL | D41: =SUM(D9:D40) -> 41,742,689.09 | E41: =SUM(E9:E40) -> 41,742,689.09 | F41: =SUM(F9:F40) -> (0.00)
D44: =D41-E41 -> 0 | F44: =SUM(F26:F40) -> 10,123,572.67

Sheet Balanza Septimbre 2024 (hidden)
A2: BALANZA DE COMPROBACION
A3: Del ejercicio terminado de Septiembre 2024
A4: (Valores en RD$)
A8: SALDO INICIAL | B8: CUENTA | C8: CONCEPTO | D8: DEBITO | E8: CREDITO | F8: BALANCE
A9: 186689.1 | B9: 1101020702 | C9: FONDO OPERATIVO # 110207192-4 | D9: 185,790.47 | E9: 371,467.78 | F9: =A9+D9-E9 -> 1,011.79
A10: 3947051.36 | B10: 1101020704 | C10: MANTENIMIENTO DE CLINICA #110207193-2 | D10: 3,942,394.23 | E10: 7,878,556.21 | F10: =A10+D10-E10 -> 10,889.38
A11: 18757958.44 | B11: 1101020701 | C11: VENTAS DE SERVICIOS (FONDOS SENASA) #110205793-0 | D11: 12,147,532.80 | E11: 10,979,246.94 | F11: 19,926,244.30 | G11: =SUM(F9:F11) -> 19,938,145.47
B12: 110601 | C12: Existencia de Bienes de Cambios y Consumo | D12: 8,789,377.43 | F12: 8,789,377.43
B13: 110602 | C13: Existencias de Productos Terminados y en Proceso | F13: 0
A14: 1,685,245.24 | B14: 1206010003 | C14: Equipo de Transporte, Tracción y Elevación | F14: 1,685,245.24
A15: 6,070,784.41 | B15: 1206010004 | C15: Equipos de Computación | F15: 6,070,784.41
A16: 9,011,691.87 | B16: 1206010005 | C16: Equipos Médicos, Sanitarios y Veterinarios | F16: 9,011,691.87
A17: 1,754,702.25 | B17: 1206010007 | C17: Equipos y Muebles para Oficinas | F17: 1,754,702.25 | G17: =SUM(F14:F17) -> 18,522,423.77
B18: 2103060002 | C18: Deducciones Personales a Pagar | D18: 140,106.30 | E18: 140,106.30 | F18: =-(E18+A18-D18) -> 0
A19: 14223497.17 | B19: 2103020002 | C19: Proveedores Directos Externos a Pagar a Corto Plazo | D19: 12,195,144.09 | E19: 11,657,580.76 | F19: (13,685,933.84)
A20: 6,405,507.20 | B20: 2298010003 | C20: Provisión para Pagos de Bonificaciones | D20: 3,592,875.69 | E20: 763,280.88 | F20: (3,575,912.39)
A21: 1059693.42 | B21: 2198020001 | C21: Regalía Pascual por Pagar | D21: 0 | E21: 128,928.22 | F21: (1,188,621.64)
A22: 651583.7 | B22: 2103060001 | C22: Retenciones Impositivas por Pagar | D22: 356,533.82 | E22: 548,424.85 | F22: (843,474.73)
A23: 19073841.18 | B23: 3201 | C23: Capital Institucional | E23: 7,574,108.01 | F23: (26,647,949.19)
B24: 320301 | C24: Resultados de Ejercicios Anteriores | F24: 0
B25: 4102980003 | C25: Ingresos por Contribuciones | E25: 4,128,184.70 | F25: (4,128,184.70)
B26: 4102980998 | C26: Otros Ingresos | D26: 0 | E26: 12,147,532.80 | F26: (12,147,532.80) | G26: =SUM(F25:F26) -> (16,275,717.50)
B27: 51010200020001 | C27: Alimentos y Productos Agroforestales | D27: 119,732.01 | E27: 0 | F27: =D27 -> 119,732.01
B28: 51010200010006 | C28: Alquileres | D28: 1,032,421.92 | E28: 0 | F28: =D28 -> 1,032,421.92
B29: 51010100070002 | C29: Bonificaciones | D29: 1,451,818.89 | E29: 0 | F29: 1,451,818.89
B30: 51010200020004 | C30: Combustibles, Lubricantes, Productos quimicos y Conexos | D30: 1,675,191.31 | E30: 0 | F30: 1,675,191.31
B31: 510102000109990001 | C31: Comisiones y Gastos Bancarios | D31: 30,315.04 | E31: 0 | F31: 30,315.04
B32: 51010200010008 | C32: Conservación, Reparaciones menores y Contrucciones Temporales | D32: 378,467.00 | E32: 0 | F32: 378,467.00
B33: 5101010080002 | C33: Contribuciones al Seguro de Pensiones | D33: 163,682.87 | E33: 0 | F33: 163,682.87
B34: 5101010080003 | C34: Contribuciones al Seguro de Riesgo Laboral | D34: 27,590.09 | E34: 0 | F34: 27,590.09
B35: 51010100080001 | C35: Contribuciones al Seguro de Salud | D35: 163,513.90 | E35: 0 | F35: 163,513.90
B36: 5101010004 | C36: Jornales | D36: 17,800.00 | E36: 0 | F36: 17,800.00
B37: 510102000109990003 | C37: Otros Servicios no Personales por Clasificar | D37: 272,448.00 | E37: 0 | F37: 272,448.00
B38: 51010200020007 | C38: Productos y Utiles Varios | D38: 6,780,944.40 | E38: 0 | F38: 6,780,944.40 | G38: =SUM(F38+F30+F27) -> 8,575,867.72
B39: 51010100070001 | C39: Regalía Pascual | D39: 128,928.22 | E39: 0 | F39: 128,928.22
B40: 510102000109990000 | C40: Servicios Técnicos Profesionales | D40: 391,000.00 | E40: 0 | F40: 391,000.00
B41: 5101010002 | C41: Sueldo Personal Temporero | D41: 1,368,023.95 | E41: 0 | F41: 1,368,023.95
B42: 51010100010001 | C42: Sueldos Fijos | D42: 648,935.02 | E42: 0 | F42: 648,935.02 | G42: =SUM(F42+F41+F39+F35+F33+F34+F29) -> 3,952,492.94
B43: 51010200010004 | C43: Viaticos Dentro y Fuera del País | D43: 316,850.00 | E43: 0 | F43: 316,850.00 | G43: =SUM(F43+F40+F37+F36+F28) -> 2,030,519.92
C44: TOTAL | D44: =SUM(D9:D43) -> 56,317,417.45 | E44: =SUM(E9:E43) -> 56,317,417.45 | F44: =SUM(F9:F43) -> 0.00
F47: =SUM(F27:F43) -> 14,967,662.62

Sheet Balanza Agosto 2024 (hidden)
A2: BALANZA DE COMPROBACION
A3: Del ejercicio terminado de Agosto 2024
A4: (Valores en RD$)
A8: SALDO INICIAL | B8: CUENTA | C8: CONCEPTO | D8: DEBITO | E8: CREDITO | F8: BALANCE
A9: 1,520.47 | B9: 1101020702 | C9: FONDO OPERATIVO # 110207192-4 | D9: 371,551.71 | E9: 186,383.08 | F9: =A9+D9-E9 -> 186,689.10
A10: 5,768.29 | B10: 1101020704 | C10: MANTENIMIENTO DE CLINICA #110207193-2 | D10: 7,882,284.63 | E10: 3,941,001.56 | F10: =A10+D10-E10 -> 3,947,051.36
A11: 16,196,882.12 | B11: 1101020701 | C11: VENTAS DE SERVICIOS (FONDOS SENASA) #110205793-0 | D11: 9,018,812.14 | E11: 6,457,735.82 | F11: 18,757,958.44 | G11: =SUM(F9:F11) -> 22,891,698.90
B12: 110601 | C12: Existencia de Bienes de Cambios y Consumo | D12: 10,125,703.19 | F12: 10,125,703.19
B13: 110602 | C13: Existencias de Productos Terminados y en Proceso | F13: =A13+D13-E13 -> 0
A14: 1,685,314.40 | B14: 1206010003 | C14: Equipo de Transporte, Tracción y Elevación | F14: 1,685,314.40
A15: 6,070,784.41 | B15: 1206010004 | C15: Equipos de Computación | F15: 6,070,784.41
A16: 9,378,170.87 | B16: 1206010005 | C16: Equipos Médicos, Sanitarios y Veterinarios | F16: 9,378,170.87
A17: 1,345,990.26 | B17: 1206010007 | C17: Equipos y Muebles para Oficinas | F17: 1,345,990.26 | G17: =SUM(F14:F17) -> 18,480,259.94
B18: 2103060002 | C18: Deducciones Personales a Pagar | D18: 0 | E18: 140,106.30 | F18: =-(E18+A18-D18) -> (140,106.30)
A19: 3761515.34 | B19: 2103020002 | C19: Proveedores Directos Externos a Pagar a Corto Plazo | D19: 8,350,777.10 | E19: 18,812,758.93 | F19: (14,223,497.17)
A20: 5642226.32 | B20: 2298010003 | C20: Provisión para Pagos de Bonificaciones | D20: 0 | E20: 763,280.88 | F20: (6,405,507.20)
A21: 927549.58 | B21: 2198020001 | C21: Regalía Pascual por Pagar | D21: 0 | E21: 132,143.84 | F21: (1,059,693.42)
A22: 589001.96 | B22: 2103060001 | C22: Retenciones Impositivas por Pagar | D22: 315,967.17 | E22: 378,548.91 | F22: (651,583.70)
A23: 23764137.62 | B23: 3201 | C23: Capital Institucional | E23: 10,125,703.19 | F23: (33,889,840.81)
B24: 320301 | C24: Resultados de Ejercicios Anteriores | F24: 0
B25: 4102980998 | C25: Otros Ingresos | D25: 0 | E25: 17,272,648.48 | F25: (17,272,648.48)
B26: 51010200020001 | C26: Alimentos y Productos Agroforestales | D26: 129,029.03 | E26: 0 | F26: =D26 -> 129,029.03
B27: 51010200010006 | C27: Alquileres | D27: 675,714.00 | E27: 0 | F27: =D27 -> 675,714.00
B28: 51010100070002 | C28: Bonificaciones | D28: 763,280.88 | E28: 0 | F28: 763,280.88
B29: 51010200020004 | C29: Combustibles, Lubricantes, Productos quimicos y Conexos | D29: 4,730,806.73 | E29: 0 | F29: 4,730,806.73
B30: 510102000109990001 | C30: Comisiones y Gastos Bancarios | D30: 18,141.74 | E30: 0 | F30: 18,141.74
B31: 51010200010008 | C31: Conservación, Reparaciones menores y Contrucciones Temporales | D31: 992,221.21 | E31: 0 | F31: 992,221.21
B32: 51010100070003 | C32: Prestaciones Laborales | D32: 53,974.01 | E32: 0 | F32: 53,974.01
B33: 51010200020007 | C33: Productos y Utiles Varios | D33: 12,362,487.96 | E33: 0 | F33: 12,362,487.96 | G33: =SUM(F33+F29+F26) -> 17,222,323.72
B34: 51010100070001 | C34: Regalía Pascual | D34: 132,143.84 | E34: 0 | F34: 132,143.84
B35: 5101010002 | C35: Sueldo Personal Temporero | D35: 1,350,515.33 | E35: 0 | F35: 1,350,515.33
B36: 51010100010001 | C36: Sueldos Fijos | D36: 798,450.32 | E36: 0 | F36: 798,450.32 | G36: =SUM(F36+F35+F34+F32+F28) -> 3,098,364.38
B37: 51010200010004 | C37: Viaticos Dentro y Fuera del País | D37: 138,450.00 | E37: 0 | F37: 138,450.00 | G37: =SUM(F37+F27) -> 814,164.00
C38: TOTAL | D38: =SUM(D9:D37) -> 58,210,310.99 | E38: =SUM(E9:E37) -> 58,210,310.99 | F38: =SUM(F9:F37) -> (0.00)
D40: =D38-E38 -> 0
F41: =SUM(F26:F37) -> 22,145,215.05

Sheet Balanza Julio 2024 (hidden)
A2: BALANZA DE COMPROBACION
A3: Del ejercicio terminado de Julio 2024
A4: (Valores en RD$)
A7: SALDO INICIAL | B7: CUENTA | C7: CONCEPTO | D7: DEBITO | E7: CREDITO | F7: BALANCE
A8: 1,203.18 | B8: 1101020702 | C8: FONDO OPERATIVO # 110207192-4 | D8: 185,342.22 | E8: 185,024.93 | F8: =A8+D8-E8 -> 1,520.47
A9: 5,316.14 | B9: 1101020704 | C9: MANTENIMIENTO DE CLINICA #110207193-2 | D9: 3,941,910.22 | E9: 3,941,458.07 | F9: =A9+D9-E9 -> 5,768.29
A10: 15,193,264.04 | B10: 1101020701 | C10: VENTAS DE SERVICIOS (FONDOS SENASA) #110205793-0 | D10: 8,106,573.60 | E10: 7,102,855.40 | F10: 16,196,982.24 | G10: =SUM(F8:F10) -> 16,204,271.00
B11: 110601 | C11: Existencia de Bienes de Cambios y Consumo | D11: 13,291,710.59 | F11: 13,291,710.59
B12: 110602 | C12: Existencias de Productos Terminados y en Proceso | F12: 0
A13: 1,672,241.70 | B13: 1206010003 | C13: Equipo de Transporte, Tracción y Elevación | F13: 1,672,241.70
A14: 6,630,192.88 | B14: 1206010004 | C14: Equipos de Computación | F14: 6,630,192.88
A15: 10,526,671.43 | B15: 1206010005 | C15: Equipos Médicos, Sanitarios y Veterinarios | F15: 10,526,671.43
A16: 5,892.04 | B16: 1206010007 | C16: Equipos y Muebles para Oficinas | F16: 5,892.04 | G16: =SUM(F13:F16) -> 18,834,998.05
B17: 2103060002 | C17: Deducciones Personales a Pagar | D17: 143,831.16 | E17: 143,831.16 | F17: =-(E17+A17-D17) -> 0
A18: 1,672,746.83 | B18: 2103020002 | C18: Proveedores Directos Externos a Pagar a Corto Plazo | D18: 8,015,966.98 | E18: 10,104,735.49 | F18: (3,761,515.34)
A19: 4,878,945.44 | B19: 2298010003 | C19: Provisión para Pagos de Bonificaciones | D19: 0 | E19: 763,280.88 | F19: (5,642,226.32)
A20: 795,105.74 | B20: 2198020001 | C20: Regalía Pascual por Pagar | D20: 0 | E20: 132,443.84 | F20: (927,549.58)
A21: 625,724.81 | B21: 2103060001 | C21: Retenciones Impositivas por Pagar | D21: 388,510.74 | E21: 351,787.89 | F21: (589,001.96)
B22: 2103010001 | C22: Sueldos y Jornales a Pagar | D22: 12,100.00 | E22: 12,100.00 | F22: 0
A23: 26,062,258.59 | B23: 3201 | C23: Capital Institucional | E23: 13,291,710.59 | F23: (39,353,969.18)
B24: 320301 | C24: Resultados de Ejercicios Anteriores | F24: 0
B25: 4102980998 | C25: Otros Ingresos | D25: 0 | E25: 12,233,826.04 | F25: (12,233,826.04)
B26: 51010200020001 | C26: Alimentos y Productos Agroforestales | D26: 591,063.96 | E26: 0 | F26: =D26 -> 591,063.96
B27: 51010200010006 | C27: Alquileres | D27: 435,484.72 | E27: 0 | F27: =D27 -> 435,484.72
B28: 51010100070002 | C28: Bonificaciones | D28: 763,280.88 | E28: 0 | F28: 763,280.88
B29: 51010200020004 | C29: Combustibles, Lubricantes, Productos quimicos y Conexos | D29: 3,531,450.75 | E29: 0 | F29: 3,531,450.75
B30: 510102000109990001 | C30: Comisiones y Gastos Bancarios | D30: 18,725.04 | E30: 0 | F30: 18,725.04
B31: 51010200010008 | C31: Conservación, Reparaciones menores y Contrucciones Temporales | D31: 938,850.22 | E31: 0 | F31: 938,850.22
B32: 5101010080002 | C32: Contribuciones al Seguro de Pensiones | D32: 164,548.62 | E32: 0 | F32: 164,548.62
B33: 5101010080003 | C33: Contribuciones al Seguro de Riesgo Laboral | D33: 27,811.02 | E33: 0 | F33: 27,811.02
B34: 51010100080001 | C34: Contribuciones al Seguro de Salud | D34: 164,316.85 | E34: 0 | F34: 164,316.85
B35: 5101010004 | C35: Jornales | D35: 23,100.00 | E35: 0 | F35: 23,100.00
B36: 51010100070003 | C36: Prestaciones Laborales | D36: 75,000.00 | E36: 0 | F36: 75,000.00
B37: 51010200020007 | C37: Productos y Utiles Varios | D37: 4,858,758.23 | E37: 0 | F37: 4,858,758.23
B38: 51010100070001 | C38: Regalía Pascual | D38: 132,443.84 | E38: 0 | F38: 132,443.84
B39: 51010200010002 | C39: Servicios Básicos | D39: 4,605.62 | E39: 0 | F39: 4,605.62 | G39: =SUM(F39+F37+F29+F26) -> 8,985,878.56
B40: 5101010002 | C40: Sueldo Personal Temporero | D40: 503,883.77 | E40: 0 | F40: 503,883.77
B41: 51010100010001 | C41: Sueldos Fijos | D41: 1,684,735.26 | E41: 0 | F41: 1,684,735.26 | G41: =SUM(F41+F40+F38+F36+F34+F33+F32+F28) -> 3,516,020.24
B42: 51010200010005 | C42: Transporte y Almacenaje | D42: 6,000.00 | E42: 0 | F42: 6,000.00
B43: 51010200010004 | C43: Viaticos Dentro y Fuera del País | D43: 253,050.00 | E43: 0 | F43: 253,050.00 | G43: =SUM(F43+F42+F35+F27) -> 717,634.72
C44: TOTAL | D44: =SUM(D8:D43) -> 48,263,054.29 | E44: =SUM(E8:E43) -> 48,263,054.29 | F44: =SUM(F8:F43) -> (0.00)
D47: =D44-E44 -> 0

Sheet Balanza Junio 2024 (hidden)
A2: BALANZA DE COMPROBACION
A3: Del ejercicio terminado de Junio 2024
A4: (Valores en RD$)
A7: SALDO INICIAL | B7: CUENTA | C7: CONCEPTO | D7: DEBITO | E7: CREDITO | F7: BALANCE
A8: 222.69 | B8: 1101020702 | C8: FONDO OPERATIVO # 110207192-4 | D8: 190,522.71 | E8: 189,542.22 | F8: =A8+D8-E8 -> 1,203.18
B9: 1101010002 | C9: Caja Chica | D9: 7,900.00 | E9: 7,900.00 | F9: 0
A10: 3,946,173.93 | B10: 1101020704 | C10: MANTENIMIENTO DE CLINICA #110207193-2 | D10: 3,940,654.99 | E10: 7,881,512.78 | F10: 5,316.14
A11: 13,865,807.67 | B11: 1101020701 | C11: VENTAS DE SERVICIOS (FONDOS SENASA) #110205793-0 | D11: 8,988,383.50 | E11: 7,660,927.13 | F11: 15,193,264.04 | G11: =SUM(F8:F11) -> 15,199,783.36
B12: 110601 | C12: Existencia de Bienes de Cambios y Consumo | D12: 5,912,445.33 | F12: 5,912,445.33
B13: 110602 | C13: Existencias de Productos Terminados y en Proceso | F13: 0
A14: 1,672,241.70 | B14: 1206010003 | C14: Equipo de Transporte, Tracción y Elevación | F14: 1,672,241.70
A15: 6,070,784.41 | B15: 1206010004 | C15: Equipos de Computación | F15: 6,070,784.41
A16: 10,389,288.37 | B16: 1206010005 | C16: Equipos Médicos, Sanitarios y Veterinarios | D16: 1,285,091.38 | F16: 11,674,379.75
A17: 615,045.73 | B17: 1206010007 | C17: Equipos y Muebles para Oficinas | F17: 615,045.73 | G17: =SUM(F14:F17) -> 20,032,451.59
B18: 2103060002 | C18: Deducciones Personales a Pagar | D18: 142,000.62 | E18: 142,000.62 | F18: =-(E18+A18-D18) -> 0
A19: 1,659,101.83 | B19: 2103020002 | C19: Proveedores Directos Externos a Pagar a Corto Plazo | D19: 9,828,620.26 | E19: 9,842,265.26 | F19: (1,672,746.83)
A20: 4,115,664.56 | B20: 2298010003 | C20: Provisión para Pagos de Bonificaciones | D20: 0 | E20: 763,280.88 | F20: (4,878,945.44)
A21: 662,661.90 | B21: 2198020001 | C21: Regalía Pascual por Pagar | D21: 0 | E21: 132,443.84 | F21: (795,105.74)
A22: 578,534.18 | B22: 2103060001 | C22: Retenciones Impositivas por Pagar | D22: 581,610.52 | E22: 628,801.15 | F22: (625,724.81)
A23: 29,543,602.03 | B23: 3201 | C23: Capital Institucional | D23: 246,438.92 | E23: 5,912,140.28 | F23: (35,209,303.39)
B24: 320301 | C24: Resultados de Ejercicios Anteriores | F24: 0
B25: 4102980003 | C25: Ingresos por Contribuciones | D25: 0 | E25: 4,131,157.95 | F25: (4,131,157.95)
B26: 4102980998 | C26: Otros Ingresos | D26: 0 | E26: 8,988,383.30 | F26: (8,988,383.30) | G26: =SUM(F25:F26) -> (13,119,541.25)
B27: 51010200020001 | C27: Alimentos y Productos Agroforestales | D27: 137,811.80 | E27: 0 | F27: =D27 -> 137,811.80
B28: 51010200010006 | C28: Alquileres | D28: 2,538,223.55 | E28: 0 | F28: 2,538,223.55
B29: 51010100070002 | C29: Bonificaciones | D29: 763,280.88 | E29: 0 | F29: 763,280.88
B30: 51010200020004 | C30: Combustibles, Lubricantes, Productos quimicos y Conexos | D30: 2,540,069.90 | E30: 0 | F30: 2,540,069.90
B31: 510102000109990001 | C31: Comisiones y Gastos Bancarios | D31: 25,223.58 | E31: 0 | F31: 25,223.58
B32: 51010200010008 | C32: Conservación, Reparaciones menores y Contrucciones Temporales | D32: 1,108,779.56 | E32: 0 | F32: 1,108,779.56
B33: 5101010080002 | C33: Contribuciones al Seguro de Pensiones | D33: 160,288.62 | E33: 0 | F33: 160,288.62
B34: 5101010080003 | C34: Contribuciones al Seguro de Riesgo Laboral | D34: 27,091.02 | E34: 0 | F34: 27,091.02
B35: 51010100080001 | C35: Contribuciones al Seguro de Salud | D35: 160,062.85 | E35: 0 | F35: 160,062.85
B36: 5101010004 | C36: Jornales | D36: 12,400.00 | E36: 0 | F36: 12,400.00
B37: 51010200020007 | C37: Productos y Utiles Varios | D37: 4,453,744.89 | E37: 0 | F37: 4,453,744.89 | G37: =SUM(F37+F30+F27) -> 7,131,626.59
B38: 51010100070001 | C38: Regalía Pascual | D38: 132,443.84 | E38: 0 | F38: 132,443.84
B39: 51010200010002 | C39: Servicios Básicos | D39: 77,886.26 | E39: 0 | F39: 77,886.26
B40: 510102000109990000 | C40: Servicios Técnicos Profesionales | D40: 2,837.90 | E40: 0 | F40: 2,837.90
B41: 5101010002 | C41: Sueldo Personal Temporero | D41: 756,147.30 | E41: 0 | F41: 756,147.30
B42: 51010100010001 | C42: Sueldos Fijos | D42: 1,607,978.57 | E42: 0 | F42: 1,607,978.57
B43: 51010200010005 | C43: Transporte y Almacenaje | D43: 25,266.66 | E43: 0 | F43: 25,266.66 | G43: =SUM(F43+F40+F39+F36+F28) -> 2,656,614.37
B44: 51010200010004 | C44: Viaticos Dentro y Fuera del País | D44: 627,150.00 | E44: 0 | F44: 627,150.00 | G44: =SUM(F44+F42+F41+F38+F35+F34+F33+F29) -> 4,234,443.08
C45: TOTAL | D45: =SUM(D8:D44) -> 46,280,355.41 | E45: =SUM(E8:E44) -> 46,280,355.41 | F45: =SUM(F8:F44) -> 0.00
D48: =D45-E45 -> 0 | F48: =SUM(F27:F44) -> 15,156,687.18

Sheet Balanza Mayo 2024 (hidden)
A2: BALANZA DE COMPROBACION
A3: Del ejercicio terminado de Mayo 2024
A4: (Valores en RD$)
A7: SALDO INICIAL | B7: CUENTA | C7: CONCEPTO | D7: DEBITO | E7: CREDITO | F7: BALANCE
A8: 362.94 | B8: 1101020702 | C8: FONDO OPERATIVO # 110207192-4 | D8: 190,362.46 | E8: 190,502.71 | F8: =A8+D8-E8 -> 222.69
B9: 1101010002 | C9: Caja Chica | D9: 5,000.00 | E9: 5,000.00 | F9: 0
A10: 2,163.68 | B10: 1101020704 | C10: MANTENIMIENTO DE CLINICA #110207193-2 | D10: 3,944,010.25 | E10: 0 | F10: 3,946,173.93
A11: 12,065,342.32 | B11: 1101020701 | C11: VENTAS DE SERVICIOS (FONDOS SENASA) #110205793-0 | D11: 8,612,741.24 | E11: 6,812,275.89 | F11: 13,865,807.67 | G11: =SUM(F8:F11) -> 17,812,204.29
B12: 110601 | C12: Existencia de Bienes de Cambios y Consumo | D12: 8,137,648.43 | F12: 8,137,648.43
B13: 110602 | C13: Existencias de Productos Terminados y en Proceso | F13: 0
B14: 1206010003 | C14: Equipo de Transporte, Tracción y Elevación | D14: 1,672,241.70 | F14: 1,672,241.70
B15: 1206010004 | C15: Equipos de Computación | D15: 6,070,784.41 | F15: 6,070,784.41
B16: 1206010005 | C16: Equipos Médicos, Sanitarios y Veterinarios | D16: 10,651,112.64 | F16: 10,651,112.64
B17: 1206010007 | C17: Equipos y Muebles para Oficinas | D17: 1,053,211.28 | F17: 1,053,211.28 | G17: =SUM(F14:F17) -> 19,447,350.03
B18: 2103060002 | C18: Deducciones Personales a Pagar | D18: 141,409.62 | E18: 141,409.62
A19: 808,570.49 | B19: 2103020002 | C19: Proveedores Directos Externos a Pagar a Corto Plazo | D19: 3,386,380.94 | E19: 4,236,912.28 | F19: =-(E19+A19-D19) -> (1,659,101.83)
A20: 3,352,383.68 | B20: 2298010003 | C20: Provisión para Pagos de Bonificaciones | D20: 0 | E20: 763,280.88 | F20: (4,115,664.56)
A21: 558,691.98 | B21: 2103060001 | C21: Retenciones Impositivas por Pagar | D21: 183,938.19 | E21: 203,780.39 | F21: (578,534.18)
A22: 530,218.06 | B22: 2198020001 | C22: Regalía Pascual por Pagar | D22: 0 | E22: 132,443.84 | F22: (662,661.90)
A23: 6,818,004.73 | B23: 3201 | C23: Capital Institucional | D23: 1,145,319.93 | E23: 27,584,998.46 | F23: (33,257,683.26)
B24: 320301 | C24: Resultados de Ejercicios Anteriores | F24: 0
B25: 4102980003 | C25: Ingresos por Contribuciones | D25: 0 | E25: 4,134,372.71 | F25: (4,134,372.71)
B26: 4102980998 | C26: Otros Ingresos | D26: 0 | E26: 8,612,741.24 | F26: (8,612,741.24) | G26: =SUM(F25:F26) -> (12,747,113.95)
B27: 51010200020001 | C27: Alimentos y Productos Agroforestales | D27: 72,230.56 | E27: 0 | F27: =D27 -> 72,230.56
B28: 51010200010006 | C28: Alquileres | D28: 1,493,529.44 | E28: 0 | F28: =D28 -> 1,493,529.44
B29: 51010100070002 | C29: Bonificaciones | D29: 764,930.93 | E29: 0 | F29: 764,930.93
B30: 51010200020004 | C30: Combustibles, Lubricantes, Productos quimicos y Conexos | D30: 640,304.18 | E30: 0 | F30: 640,304.18
B31: 510102000109990001 | C31: Comisiones y Gastos Bancarios | D31: 12,279.31 | E31: 0 | F31: 12,279.31
B32: 51010200010008 | C32: Conservación, Reparaciones menores y Contrucciones Temporales | D32: 157,989.12 | E32: 0 | F32: 157,989.12
B33: 5101010080002 | C33: Contribuciones al Seguro de Pensiones | D33: 159,578.62 | E33: 0 | F33: 159,578.62
B34: 5101010080003 | C34: Contribuciones al Seguro de Riesgo Laboral | D34: 26,971.02 | E34: 0 | F34: 26,971.02
B35: 51010100080001 | C35: Contribuciones al Seguro de Salud | D35: 159,353.85 | E35: 0 | F35: 159,353.85
B36: 5101010004 | C36: Jornales | D36: 11,000.00 | E36: 0 | F36: 11,000.00
B37: 51010200020007 | C37: Productos y Utiles Varios | D37: 1,553,119.49 | E37: 0 | F37: 1,553,119.49
B38: 51010100070001 | C38: Regalía Pascual | D38: 132,443.84 | E38: 0 | F38: 132,443.84
B39: 51010200010002 | C39: Servicios Básicos | D39: 6,000.00 | E39: 0 | F39: 6,000.00 | G39: =SUM(F39+F37+F30) -> 2,199,423.67
B40: 5101010002 | C40: Sueldo Personal Temporero | D40: 712,072.33 | E40: 0 | F40: 712,072.33
B41: 51010100010001 | C41: Sueldos Fijos | D41: 1,617,387.58 | E41: 0 | F41: 1,617,387.58 | G41: =SUM(F41+F40+F38+F35+F34+F33+F29) -> 3,572,738.17
B42: 51010200010005 | C42: Transporte y Almacenaje | D42: 16,466.66 | E42: 0 | F42: 16,466.66
B43: 51010200010004 | C43: Viaticos Dentro y Fuera del País | D43: 87,900.00 | E43: 0 | F43: 87,900.00 | G43: =SUM(F43+F42+F36+F28+F27) -> 1,681,126.66
C44: TOTAL | D44: =SUM(D8:D43) -> 52,817,718.02 | E44: =SUM(E8:E43) -> 52,817,718.02 | F44: =SUM(F8:F43) -> (0.00)
D47: =D44-E44 -> 0 | F47: =SUM(F27:F43) -> 7,623,556.93

Sheet Balanza Abril 2024 (hidden)
A3: BALANZA DE COMPROBACION
A4: Del ejercicio terminado de Abril 2024
A5: (Valores en RD$)
A7: SALDO INICIAL | B7: CUENTA | C7: CONCEPTO | D7: DEBITO | E7: CREDITO | F7: BALANCE
B8: 1101020702 | C8: FONDO OPERATIVO # 110207192-4 | D8: 191,070.40 | E8: 190,707.46 | F8: =A8+D8-E8 -> 362.94
B9: 1101010002 | C9: Caja Chica | D9: 15,800.00 | E9: 15,800.00 | F9: 0
A10: 2,488.68 | B10: 1101020704 | C10: MANTENIMIENTO DE CLINICA #110207193-2 | D10: 0 | E10: 325.00 | F10: 2,163.68
A11: 16,460,563.94 | B11: 1101020701 | C11: VENTAS DE SERVICIOS (FONDOS SENASA) #110205793-0 | D11: 8,207,551.25 | E11: 12,602,772.87 | F11: 12,065,342.32 | G11: =SUM(F8:F11) -> 12,067,868.94
B12: 110601 | C12: Existencia de Bienes de Cambios y Consumo | D12: 8,137,648.43 | F12: 8,137,648.43
B13: 110602 | C13: Existencias de Productos Terminados y en Proceso | F13: 0
B14: 1206010003 | C14: Equipo de Transporte, Tracción y Elevación | D14: 1,672,241.70 | F14: 1,672,241.70
B15: 1206010004 | C15: Equipos de Computación | D15: 6,070,784.41 | F15: 6,070,784.41
B16: 1206010005 | C16: Equipos Médicos, Sanitarios y Veterinarios | D16: 10,651,112.64 | F16: 10,651,112.64
B17: 1206010007 | C17: Equipos y Muebles para Oficinas | D17: 1,053,211.28 | F17: 1,053,211.28 | G17: =SUM(F14:F17) -> 19,447,350.03
B18: 2103060002 | C18: Deducciones Personales a Pagar | D18: 148,808.20 | E18: 148,808.20 | F18: =-(E18+A18-D18) -> 0
A19: 889,697.02 | B19: 2103020002 | C19: Proveedores Directos Externos a Pagar a Corto Plazo | D19: 3,613,323.28 | E19: 3,532,196.75 | F19: (808,570.49)
A20: 7,856,652.01 | B20: 2298010003 | C20: Provisión para Pagos de Bonificaciones | D20: 5,267,549.21 | E20: 763,280.88 | F20: (3,352,383.68)
A21: 397,774.22 | B21: 2198020001 | C21: Regalía Pascual por Pagar | D21: 0 | E21: 132,443.84 | F21: (530,218.06)
A22: 718,923.62 | B22: 2103060001 | C22: Retenciones Impositivas por Pagar | D22: 377,353.52 | E22: 217,121.88 | F22: (558,691.98)
A23: 6,600,005.75 | B23: 3201 | C23: Capital Institucional | E23: 27,584,998.46 | F23: (34,185,004.21)
B24: 320301 | C24: Resultados de Ejercicios Anteriores | F24: 0
B25: 4102980003 | C25: Ingresos por Contribuciones | D25: 0 | E25: 191,070.40 | F25: (191,070.40)
B26: 4102980998 | C26: Otros Ingresos | D26: 0 | E26: 8,207,551.25 | F26: (8,207,551.25) | G26: =SUM(F25:F26) -> (8,398,621.65)
B27: 51010200020001 | C27: Alimentos y Productos Agroforestales | D27: 308,647.44 | E27: 0 | F27: =D27 -> 308,647.44
B28: 51010200010006 | C28: Alquileres | D28: 714,444.72 | E28: 0 | F28: =D28 -> 714,444.72
B29: 51010100070002 | C29: Bonificaciones | D29: 765,280.70 | E29: 0 | F29: 765,280.70
B30: 51010200020004 | C30: Combustibles, Lubricantes, Productos quimicos y Conexos | D30: 239,755.96 | E30: 0 | F30: 239,755.96
B31: 510102000109990001 | C31: Comisiones y Gastos Bancarios | D31: 21,358.57 | E31: 0 | F31: 21,358.57
B32: 51010200010008 | C32: Conservación, Reparaciones menores y Contrucciones Temporales | D32: 1,022,073.45 | E32: 0 | F32: 1,022,073.45
B33: 5101010080002 | C33: Contribuciones al Seguro de Pensiones | D33: 168,466.93 | E33: 0 | F33: 168,466.93
B34: 5101010080003 | C34: Contribuciones al Seguro de Riesgo Laboral | D34: 28,473.27 | E34: 0 | F34: 28,473.27
B35: 51010100080001 | C35: Contribuciones al Seguro de Salud | D35: 168,229.64 | E35: 0 | F35: 168,229.64
B36: 510102001009 | C36: OTROS SERVICIOS NO PERSONALES | D36: 191,160.00 | E36: 0 | F36: 191,160.00
B37: 51010100070003 | C37: Prestaciones Laborales | D37: 233,226.01 | E37: 0 | F37: 233,226.01
B38: 51010200020007 | C38: Productos y Utiles Varios | D38: 1,923,480.40 | E38: 0 | F38: 1,923,480.40
B39: 51010100070001 | C39: Regalía Pascual | D39: 132,443.84 | E39: 0 | F39: 132,443.84
B40: 51010200010001 | C40: Servicios de Comunicaciones | D40: 16,893.50 | E40: 0 | F40: 16,893.50
B41: 5101010002 | C41: Sueldo Personal Temporero | D41: 1,249,368.04 | E41: 0 | F41: 1,249,368.04
B42: 51010100010001 | C42: Sueldos Fijos | D42: 825,003.54 | E42: 0 | F42: 825,003.54 | G42: =SUM(F42+F41+F39+F37+F35+F34+F33+F29) -> 3,570,491.97
B43: 51010200010005 | C43: Transporte y Almacenaje | D43: 27,266.66 | E43: 0 | F43: 27,266.66 | G43: =SUM(F43+F38+F36+F30) -> 2,381,663.02
B44: 51010200010004 | C44: Viaticos Dentro y Fuera del País | D44: 145,050.00 | E44: 0 | F44: 145,050.00 | G44: =SUM(F44+F40+F28+F27) -> 1,185,035.66
C45: TOTAL | D45: =SUM(D8:D44) -> 53,587,076.99 | E45: =SUM(E8:E44) -> 53,587,076.99 | F45: =SUM(F8:F44) -> (0.00)
D48: =D45-E45 -> 0 | F48: =SUM(F27:F44) -> 8,180,622.67

Sheet Balanza Marzo 2024 (hidden)
A3: BALANZA DE COMPROBACION
A4: Del ejercicio terminado de Marzo 2024
A5: (Valores en RD$)
A8: SALDO INICIAL | B8: CUENTA | C8: CONCEPTO | D8: DEBITO | E8: CREDITO | F8: BALANCE
A9: 2813.68 | B9: 1101020704 | C9: MANTENIMIENTO DE CLINICA #110207193-2 | D9: 0 | E9: 325.00 | F9: =A9+D9-E9 -> 2,488.68
C10: Caja Chica | D10: 38,000.00 | F10: 38,000.00
A11: 17,529,251.56 | B11: 1101020701 | C11: VENTAS DE SERVICIOS (FONDOS SENASA) #110205793-0 | D11: 9,808,079.67 | E11: 10,876,767.29 | F11: 16,460,563.94 | G11: =SUM(F9:F11) -> 16,501,052.62
B12: 110601 | C12: Existencia de Bienes de Cambios y Consumo | D12: 4,384,702.57 | F12: 4,384,702.57
B13: 110602 | C13: Existencias de Productos Terminados y en Proceso | F13: 0
B14: 1206010003 | C14: Equipo de Transporte, Tracción y Elevación | D14: 1,672,241.70 | E14: 0 | F14: 1,672,241.70
B15: 1206010004 | C15: Equipos de Computación | D15: 6,070,784.41 | F15: 6,070,784.41
B16: 1206010005 | C16: Equipos Médicos, Sanitarios y Veterinarios | D16: 10,989,481.99 | F16: 10,989,481.99
B17: 1206010007 | C17: Equipos y Muebles para Oficinas | D17: 1,065,724.49 | F17: 1,065,724.49 | G17: =SUM(F14:F17) -> 19,798,232.59
B18: 2103060002 | C18: Deducciones Personales a Pagar | D18: 150,581.20 | E18: 150,581.20 | F18: =-(E18+A18-D18) -> 0
A19: 6275018.23 | B19: 2103020002 | C19: Proveedores Directos Externos a Pagar a Corto Plazo | D19: 7,184,552.90 | E19: 1,799,231.69 | F19: (889,697.02)
A20: 7093371.13 | B20: 2298010003 | C20: Provisión para Pagos de Bonificaciones | D20: 0 | E20: 763,280.88 | F20: (7,856,652.01)
A21: 265330.38 | B21: 2198020001 | C21: Regalía Pascual por Pagar | D21: 0 | E21: 132,443.84 | F21: (397,774.22)
A22: 368975.95 | B22: 2103060001 | C22: Retenciones Impositivas por Pagar | D22: 0 | E22: 349,947.67 | F22: (718,923.62)
A23: 3529369.55 | B23: 3201 | C23: Capital Institucional | E23: 24,149,405.16 | F23: (27,678,774.71)
B24: 320301 | C24: Resultados de Ejercicios Anteriores | F24: 0
B25: 4102980998 | C25: Otros Ingresos | D25: 0 | E25: 9,800,879.32 | F25: (9,800,879.32)
B26: 51010200020001 | C26: Alimentos y Productos Agroforestales | D26: 92,022.31 | E26: 0 | F26: =D26 -> 92,022.31
B27: 51010200010006 | C27: Alquileres | D27: 755,321.72 | E27: 0 | F27: =D27 -> 755,321.72
B28: 51010100070002 | C28: Bonificaciones | D28: 763,280.88 | E28: 0 | F28: 763,280.88
B29: 51010200020004 | C29: Combustibles, Lubricantes, Productos quimicos y Conexos | D29: 111,799.42 | E29: 0 | F29: 111,799.42
B30: 510102000109990001 | C30: Comisiones y Gastos Bancarios | D30: 17,918.02 | E30: 0 | F30: 17,918.02
B31: 5101010080002 | C31: Contribuciones al Seguro de Pensiones | D31: 170,596.93 | E31: 0 | F31: 170,596.93
B32: 5101010080003 | C32: Contribuciones al Seguro de Riesgo Laboral | D32: 28,833.27 | E32: 0 | F32: 28,833.27
B33: 51010100080001 | C33: Contribuciones al Seguro de Salud | D33: 170,356.64 | E33: 0 | F33: 170,356.64
B34: 51010100070003 | C34: Prestaciones Laborales | D34: 7,211.01 | E34: 0 | F34: 7,211.01
B35: 51010200020007 | C35: Productos y Utiles Varios | D35: 1,505,188.09 | E35: 0 | F35: 1,505,188.09
B36: 51010200010003 | C36: Públicidad , Impresiones y Encuadernaciones | D36: 11,491.52 | E36: 0 | F36: 11,491.52 | G36: =SUM(F36+F35+F29) -> 1,628,479.03
B37: 51010100070001 | C37: Regalía Pascual | D37: 132,443.84 | E37: 0 | F37: 132,443.84
B38: 5101010002 | C38: Sueldo Personal Temporero | D38: 1,258,696.39 | E38: 0 | F38: 1,258,696.39
B39: 51010100010001 | C39: Sueldos Fijos | D39: 1,630,553.08 | E39: 0 | F39: 1,630,553.08 | G39: =SUM(F39+F38+F37+F34+F33+F32+F31+F28) -> 4,161,972.04
B40: 51010200010005 | C40: Transporte y Almacenaje | D40: 3,000.00 | E40: 0 | F40: 3,000.00 | G40: =SUM(F40+F27+F26) -> 850,344.03
C41: TOTAL | D41: =SUM(D9:D40) -> 48,022,862.05 | E41: =SUM(E9:E40) -> 48,022,862.05 | F41: =SUM(F9:F40) -> (0.00)
F43: =SUM(F26:F40) -> 6,658,713.12
D44: =D41-E41 -> 0

Sheet Balanza Febrero 2024 (hidden)
A3: BALANZA DE COMPROBACION
A4: Del ejercicio terminado de Febrero 2024
A5: (Valores en RD$)
A9: SALDO INICIAL | B9: CUENTA | C9: CONCEPTO | D9: DEBITO | E9: CREDITO | F9: BALANCE
B10: 1101010002 | C10: Caja Chica | D10: 38,000.00 | E10: 0 | F10: =A10+D10-E10 -> 38,000.00
A11: 3138.68 | B11: 1101020704 | C11: MANTENIMIENTO DE CLINICA #110207193-2 | D11: 0 | E11: 325.00 | F11: 2,813.68
A12: 15749033.33 | B12: 1101020701 | C12: VENTAS DE SERVICIOS (FONDOS SENASA) #110205793-0 | D12: 8,022,514.80 | E12: 6,242,296.57 | F12: 17,529,251.56 | G12: =SUM(F10:F12) -> 17,570,065.24
B13: 110601 | C13: Existencia de Bienes de Cambios y Consumo | D13: 8,910,203.14 | F13: 8,910,203.14
B14: 110602 | C14: Existencias de Productos Terminados y en Proceso | F14: 0
B15: 1206010003 | C15: Equipo de Transporte, Tracción y Elevación | D15: 1,600,711.70 | F15: 1,600,711.70
B16: 1206010004 | C16: Equipos de Computación | D16: 6,070,784.41 | F16: 6,070,784.41
B17: 1206010005 | C17: Equipos Médicos, Sanitarios y Veterinarios | D17: 10,917,143.08 | F17: 10,917,143.08
B18: 1206010007 | C18: Equipos y Muebles para Oficinas | D18: 1,078,300.69 | F18: 1,078,300.69 | G18: =SUM(F15:F18) -> 19,666,939.88
B19: 2103060002 | C19: Deducciones Personales a Pagar | D19: 153,731.93 | E19: 153,731.93 | F19: =-(E19+A19-D19) -> 0
A20: 3,264,323.14 | B20: 2103020002 | C20: Proveedores Directos Externos a Pagar a Corto Plazo | D20: 2,519,165.38 | E20: 5,529,860.47 | F20: (6,275,018.23)
A21: 6,330,088.25 | B21: 2298010003 | C21: Provisión para Pagos de Bonificaciones | D21: 0 | E21: 763,282.88 | F21: (7,093,371.13)
A22: 132,886.54 | B22: 2198020001 | C22: Regalía Pascual por Pagar | D22: 0 | E22: 132,443.84 | F22: (265,330.38)
A23: 343,282.23 | B23: 2103060001 | C23: Retenciones Impositivas por Pagar | D23: 135,048.98 | E23: 160,742.70 | F23: (368,975.95)
A24: 5,681,591.85 | B24: 3201 | C24: Capital Institucional | E24: 28,577,143.02 | F24: (34,258,734.87)
B25: 320301 | C25: Resultados de Ejercicios Anteriores | F25: 0
B26: 4102980998 | C26: Otros Ingresos | D26: 0 | E26: 8,022,514.80 | F26: (8,022,514.80)
B27: 51010200020001 | C27: Alimentos y Productos Agroforestales | D27: 242,690.63 | E27: 0 | F27: =D27 -> 242,690.63
B28: 51010200010006 | C28: Alquileres | D28: 398,838.22 | E28: 0 | F28: =D28 -> 398,838.22
B29: 51010100070002 | C29: Bonificaciones | D29: 763,282.88 | E29: 0 | F29: 763,282.88
B30: 51010200020004 | C30: Combustibles, Lubricantes, Productos quimicos y Conexos | D30: 1,406,288.77 | E30: 0 | F30: 1,406,288.77
B31: 510102000109990001 | C31: Comisiones y Gastos Bancarios | D31: 11,254.82 | E31: 0 | F31: 11,254.82
B32: 51010200010008 | C32: Conservación, Reparaciones menores y Contrucciones Temporales | D32: 726,919.61 | E32: 0 | F32: 726,919.61
B33: 5101010080002 | C33: Contribuciones al Seguro de Pensiones | D33: 174,382.08 | E33: 0 | F33: 174,382.08
B34: 5101010080003 | C34: Contribuciones al Seguro de Riesgo Laboral | D34: 29,473.01 | E34: 0 | F34: 29,473.01
B35: 51010100080001 | C35: Contribuciones al Seguro de Salud | D35: 174,136.46 | E35: 0 | F35: 174,136.46
B36: 5101010004 | C36: Jornales | D36: 14,000.00 | E36: 0 | F36: 14,000.00
B37: 51010100070003 | C37: Prestaciones Laborales | D37: 120,190.82 | E37: 0 | F37: 120,190.82
B38: 51010200020007 | C38: Productos y Utiles Varios | D38: 3,935,487.15 | E38: 0 | F38: 3,935,487.15
B39: 51010100070001 | C39: Regalía Pascual | D39: 132,443.84 | E39: 0 | F39: 132,443.84
B40: 510102000109990000 | C40: Servicios Funerarios y Gastos Conexos | D40: 3,540.00 | E40: 0 | F40: 3,540.00 | G40: =SUM(F40,F38,F30) -> 5,345,315.92
B41: 5101010002 | C41: Sueldo Personal Temporero | D41: 350,400.00 | E41: 0 | F41: 350,400.00
B42: 51010100010001 | C42: Sueldos Fijos | D42: 1,638,408.81 | E42: 0 | F42: 1,638,408.81 | G42: =SUM(F42+F39+F37+F35+F34+F33+F29+F41) -> 3,382,717.90
B43: 51010200010005 | C43: Transporte y Almacenaje | D43: 15,000.00 | E43: 0 | F43: 15,000.00 | G43: =SUM(F43,F36,F28,F27) -> 670,528.85
C44: TOTAL | D44: =SUM(D10:D43) -> 49,582,341.21 | E44: =SUM(E10:E43) -> 49,582,341.21 | F44: =SUM(F10:F43) -> 0.00
D47: =D44-E44 -> 0
F48: =SUM(F27:F43) -> 10,136,737.10

Sheet Balanza Enero 2024 (hidden)
A3: BALANZA DE COMPROBACION
A4: Del ejercicio terminado de Diciembre 2023
A5: (Valores en RD$)
A7: SALDO INICIAL | B7: CUENTA | C7: CONCEPTO | D7: DEBITO | E7: CREDITO | F7: BALANCE
B8: 1101020702 | C8: FONDO OPERATIVO # 110207192-4 | D8: 0 | E8: 199.10 | F8: =A8+D8-E8 -> (199.10)
A9: 3,463.68 | B9: 1101020704 | C9: MANTENIMIENTO DE CLINICA #110207193-2 | D9: 0 | E9: 325.00 | F9: =A9+D9-E9 -> 3,138.68
A10: 14,168,308.98 | B10: 1101020701 | C10: VENTAS DE SERVICIOS (FONDOS SENASA) #110205793-0 | D10: 7,920,247.96 | E10: 6,339,523.61 | F10: 15,749,033.33 | G10: =SUM(F8:F10) -> 15,751,972.91
B11: 110601 | C11: Existencia de Bienes de Cambios y Consumo | D11: 3,417,542.00 | F11: 3,417,542.00
B12: 110602 | C12: Existencias de Productos Terminados y en Proceso | F12: 0
B13: 1206010003 | C13: Equipo de Transporte, Tracción y Elevación | D13: 1,600,711.70 | F13: 1,600,711.70
B14: 1206010004 | C14: Equipos de Computación | D14: 6,070,784.41 | F14: 6,070,784.41
B15: 1206010005 | C15: Equipos Médicos, Sanitarios y Veterinarios | D15: 11,156,928.76 | F15: 11,156,928.76
B16: 1206010007 | C16: Equipos y Muebles para Oficinas | D16: 1,189,982.25 | F16: 1,189,982.25 | G16: =SUM(F13:F16) -> 20,018,407.12
B17: 2103060002 | C17: Deducciones Personales a Pagar | D17: 154,856.43 | E17: 154,856.43 | F17: =-(E17+A17-D17) -> 0
A18: 4,066,075.89 | B18: 2103020002 | C18: Proveedores Directos Externos a Pagar a Corto Plazo | D18: 2,810,517.15 | E18: 2,008,764.40 | F18: (3,264,323.14)
A19: 5,566,805.37 | B19: 2298010003 | C19: Provisión para Pagos de Bonificaciones | D19: 0 | E19: 763,282.88 | F19: (6,330,088.25)
B20: 2198020001 | C20: Regalía Pascual por Pagar | D20: 0 | E20: 132,886.54 | F20: (132,886.54)
A21: 534,648.70 | B21: 2103060001 | C21: Retenciones Impositivas por Pagar | D21: 370,575.17 | E21: 179,208.70 | F21: (343,282.23)
A22: 4004242.7 | B22: 3201 | C22: Capital Institucional | E22: 23,475,778.57 | F22: (27,480,021.27)
B23: 320301 | C23: Resultados de Ejercicios Anteriores | F23: 0
B24: 4102980998 | C24: Otros Ingresos | D24: 0 | E24: 7,920,247.96 | F24: (7,920,247.96)
B25: 51010200020001 | C25: Alimentos y Productos Agroforestales | D25: 85,112.46 | E25: 0 | F25: =D25 -> 85,112.46
B26: 51010200010006 | C26: Alquileres | D26: 374,838.22 | E26: 0 | F26: =D26 -> 374,838.22
B27: 51010100070002 | C27: Bonificaciones | D27: 763,282.88 | E27: 0 | F27: 763,282.88
B28: 51010200020004 | C28: Combustibles, Lubricantes, Productos quimicos y Conexos | D28: 796,044.00 | E28: 0 | F28: 796,044.00
B29: 510102000109990001 | C29: Comisiones y Gastos Bancarios | D29: 11,216.60 | E29: 0 | F29: 11,216.60
B30: 51010200010008 | C30: Conservación, Reparaciones menores y Contrucciones Temporales | D30: 219,170.68 | E30: 0 | F30: 219,170.68
B31: 5101010080002 | C31: Contribuciones al Seguro de Pensiones | D31: 173,672.11 | E31: 0 | F31: 173,672.11
B32: 5101010080003 | C32: Contribuciones al Seguro de Riesgo Laboral | D32: 29,353.02 | E32: 0 | F32: 29,353.02
B33: 51010100080001 | C33: Contribuciones al Seguro de Salud | D33: 173,427.49 | E33: 0 | F33: 173,427.49
B34: 5101010004 | C34: Jornales | D34: 8,200.00 | E34: 0 | F34: 8,200.00 | G34: =SUM(F34+F26+F25) -> 468,150.68
B35: 51010200020007 | C35: Productos y Utiles Varios | D35: 1,138,008.40 | E35: 0 | F35: 1,138,008.40
B36: 51010200010003 | C36: Públicidad , Impresiones y Encuadernaciones | D36: 9,971.00 | E36: 0 | F36: 9,971.00
B37: 51010100070001 | C37: Regalía Pascual | D37: 139,886.54 | E37: 0 | F37: 139,886.54
B38: 51010200010002 | C38: Servicios Básicos | D38: 11,844.56 | E38: 0 | F38: 11,844.56
B39: 51010200010001 | C39: Servicios de Comunicaciones | D39: 79,069.90 | E39: 0 | F39: 79,069.90 | G39: =SUM(F39+F38+F36+F35+F28) -> 2,034,937.86
B40: 5101010002 | C40: Sueldo Personal Temporero | D40: 626,810.20 | E40: 0 | F40: 626,810.20
B41: 51010100010001 | C41: Sueldos Fijos | D41: 1,643,019.30 | E41: 0 | F41: 1,643,019.30 | G41: =SUM(F41+F37+F40+F33+F32+F31+F27) -> 3,549,451.54
C42: TOTAL | D42: =SUM(D8:D41) -> 40,975,073.19 | E42: =SUM(E8:E41) -> 40,975,073.19 | F42: =SUM(F8:F41) -> 0
D45: =D42-E42 -> 0 | F45: =SUM(F25:F41) -> 6,282,927.36

Sheet Balanza MAYO 2023 (hidden)
A3: BALANZA DE COMPROBACION
A4: Del ejercicio terminado de Mayo 2023
A5: (Valores en RD$)
A9: SALDO INICIAL | B9: CUENTA | C9: CONCEPTO | D9: DEBITO | E9: CREDITO | F9: BALANCE
A10: 604.89 | B10: 1101020702 | C10: FONDO OPERATIVO # 110207192-4 | D10: 94,412.76 | E10: 94,283.32 | F10: =A10+D10-E10 -> 734.33
B11: 1101010002 | C11: Caja Chica | D11: 10,900.00 | E11: 10,900.00 | F11: =A11+D11-E11 -> 0
A12: 2181.56 | B12: 1101020704 | C12: MANTENIMIENTO DE CLINICA #110207193-2 | D12: 1,570,215.37 | E12: 1,569,840.33 | F12: 2,556.60
A13: 17291630.35 | B13: 1101020701 | C13: VENTAS DE SERVICIOS (FONDOS SENASA) #110205793-0 | D13: 8,137,027.80 | E13: 11,092,473.85 | F13: 14,336,184.30 | G13: =SUM(F10:F13) -> 14,339,475.23
B14: 110601 | C14: Existencia de Bienes de Cambios y Consumo | D14: 8,795,606.85 | F14: 8,795,606.85
B15: 110602 | C15: Existencias de Productos Terminados y en Proceso | F15: 0
B16: 1206010004 | C16: Equipos de Computación | D16: 642,693.96 | F16: 642,693.96
B17: 1206010003 | C17: Equipo de Transporte, Tracción y Elevación | D17: 1,475,676.70 | F17: 1,475,676.70
B18: 1206010005 | C18: Equipos Médicos, Sanitarios y Veterinarios | D18: 12,902,497.37 | F18: 12,902,497.37
B19: 1206010007 | C19: Equipos y Muebles para Oficinas | D19: 1,530,403.36 | F19: 1,530,403.36 | G19: =SUM(F16:F19) -> 16,551,271.39
B20: 2103060002 | C20: Deducciones Personales a Pagar | D20: 166,584.17 | E20: 166,584.17 | F20: =-(E20+A20-D20) -> 0
A21: 2034775.5 | B21: 2103020002 | C21: Proveedores Directos Externos a Pagar a Corto Plazo | D21: 3,879,752.96 | E21: 5,952,874.26 | F21: (4,107,896.80)
A22: 5121509.66 | B22: 2298010003 | C22: Provisión para Pagos de Bonificaciones | D22: 0 | E22: 763,280.88 | F22: (5,884,790.54)
A23: 1908450.77 | B23: 2198020001 | C23: Regalía Pascual por Pagar | D23: 0 | E23: 156,562.12 | F23: (2,065,012.89)
A24: 690961.35 | B24: 2103060001 | C24: Retenciones Impositivas por Pagar | D24: 206,448.70 | E24: 404,047.46 | F24: (888,560.11)
A25: 7538719.52 | B25: 3201 | C25: Capital Institucional | E25: 23,466,440.25 | F25: (31,005,159.77)
B26: 320301 | C26: Resultados de Ejercicios Anteriores | F26: 0
B27: 4102980003 | C27: Ingresos por Contribuciones | D27: 0 | E27: 1,570,215.37 | F27: (1,570,215.37)
B28: 4102980998 | C28: Otros Ingresos | D28: 0 | E28: 8,231,440.56 | F28: (8,231,440.56) | G28: =SUM(F27:F28) -> (9,801,655.93)
B29: 51010200020001 | C29: Alimentos y Productos Agroforestales | D29: 340,268.46 | E29: 0 | F29: =A29+D29-E29 -> 340,268.46
B30: 51010200010006 | C30: Alquileres | D30: 1,136,831.22 | E30: 0 | F30: 1,136,831.22
B31: 51010100070002 | C31: Bonificaciones | D31: 763,280.88 | E31: 0 | F31: 763,280.88
B32: 51010200020004 | C32: Combustibles, Lubricantes, Productos quimicos y Conexos | D32: 940,899.32 | E32: 0 | F32: 940,899.32
B33: 510102000109990001 | C33: Comisiones y Gastos Bancarios | D33: 21,845.26 | E33: 0 | F33: 21,845.26
B34: 51010200010008 | C34: Conservación, Reparaciones menores y Contrucciones Temporales | D34: 1,707,420.03 | E34: 0 | F34: 1,707,420.03
B35: 5101010080002 | C35: Contribuciones al Seguro de Pensiones | D35: 188,756.06 | E35: 0 | F35: 188,756.06
B36: 5101010080003 | C36: Contribuciones al Seguro de Riesgo Laboral | D36: 31,902.42 | E36: 0 | F36: 31,902.42
B37: 51010100080001 | C37: Contribuciones al Seguro de Salud | D37: 188,490.20 | E37: 0 | F37: 188,490.20
B38: 5101010004 | C38: Jornales | D38: 16,000.00 | E38: 0 | F38: 16,000.00
B39: 51010200020005 | C39: Productos de cuero, Caucho y Plastico | D39: 30,090.00 | E39: 0 | F39: 30,090.00
B40: 51010200020003 | C40: Productos de Papel, Carton e Impresos | D40: 82,307.36 | E40: 0 | F40: 82,307.36
B41: 51010200020007 | C41: Productos y Utiles Varios | D41: 4,183,175.67 | E41: 0 | F41: 4,183,175.67
B42: 51010200010003 | C42: Públicidad , Impresiones y Encuadernaciones | D42: 78,352.00 | E42: 0 | F42: 78,352.00
B43: 51010100070001 | C43: Regalía Pascual | D43: 156,562.12 | E43: 0 | F43: 156,562.12
B44: 51010200010002 | C44: Servicios Básicos | D44: 13,379.39 | E44: 0 | F44: 13,379.39
B45: 510102000109990000 | C45: Servicios Técnicos Profesionales | D45: 92,624.87 | E45: 0 | F45: 92,624.87
B46: 5101010002 | C46: Sueldo Personal Temporero | D46: 202,100.00 | E46: 0 | F46: 202,100.00
B47: 51010100010001 | C47: Sueldos Fijos | D47: 3,632,987.31 | E47: 0 | F47: 3,632,987.31 | G47: =SUM(F47+F46+F43+F31+F37+F36+F35) -> 5,164,078.99
B48: 51010200010005 | C48: Transporte y Almacenaje | D48: 22,900.00 | E48: 0 | F48: 22,900.00 | G48: =SUM(F48+F45+F42+F41+F40+F39+F32+F30+F29) -> 6,907,448.90
B49: 51010200010004 | C49: Viaticos Dentro y Fuera del País | D49: 236,550.00 | E49: 0 | F49: 236,550.00 | G49: =SUM(F49+F44+F38) -> 265,929.39
C50: TOTAL | D50: =SUM(D10:D49) -> 53,478,942.57 | E50: =SUM(E10:E49) -> 53,478,942.57 | F50: =SUM(F10:F49) -> 0.00
D52: =D50-E50 -> 0
F53: =SUM(F29:F49) -> 14,066,722.57

Sheet Balanza ENERO 2023 (hidden)
A3: BALANZA DE COMPROBACION
A4: Del ejercicio terminado de Enero 2023
A5: (Valores en RD$)
A8: SALDO INICIAL | B8: CUENTA | C8: CONCEPTO | D8: DEBITO | E8: CREDITO | F8: BALANCE
A9: 609.87 | B9: 1101020702 | C9: FONDO OPERATIVO # 110207192-4 | D9: 0 | E9: 325.00 | F9: =A9+D9-E9 -> 284.87
A10: 3,481.56 | B10: 1101020704 | C10: MANTENIMIENTO DE CLINICA #110207193-2 | D10: 0 | E10: 325.00 | F10: =A10+D10-E10 -> 3,156.56
A11: 3,237,896.15 | B11: 1101020701 | C11: VENTAS DE SERVICIOS (FONDOS SENASA) #110205793-0 | D11: 275,287.00 | E11: 665,976.75 | F11: 2,847,206.40
B12: 110601 | C12: Existencia de Bienes de Cambios y Consumo | F12: 0
B13: 110602 | C13: Existencias de Productos Terminados y en Proceso | D13: 11,479,359.25 | F13: 11,479,359.25
B14: 1206010003 | C14: Equipo de Transporte, Tracción y Elevación | D14: 1,319,195.55 | F14: 1,319,195.55
B15: 1206010004 | C15: Equipos de Computación | D15: 480,945.69 | F15: 480,945.69
B16: 1206010005 | C16: Equipos Médicos, Sanitarios y Veterinarios | D16: 12,250,098.78 | F16: 12,250,098.78
B17: 1206010007 | C17: Equipos y Muebles para Oficinas | D17: 1,646,382.76 | F17: 1,646,382.76
A18: 1,030,397.98 | B18: 2103020002 | C18: Proveedores Directos Externos a Pagar a Corto Plazo | D18: 0 | E18: 1,563,592.12 | F18: =-(E18+A18-D18) -> (2,593,990.10)
B19: 2298010003 | C19: Provisión para Pagos de Bonificaciones | E19: 6,281,694.22 | F19: (6,281,694.22)
A20: 1,438,764.40 | B20: 2198020001 | C20: Regalía Pascual por Pagar | D20: 0 | E20: 156,562.13 | F20: (1,595,326.53)
A21: 674,483.99 | B21: 2103060001 | C21: Retenciones Impositivas por Pagar | D21: 316,879.36 | E21: 8,446.66 | F21: (366,051.29)
A22: 98,341.21 | B22: 3201 | C22: Capital Institucional | E22: 20,858,187.81 | F22: (20,956,529.02)
B23: 320301 | C23: Resultados de Ejercicios Anteriores | F23: 0
B24: 4102980998 | C24: Otros Ingresos | D24: 0 | E24: 275,287.00 | F24: (275,287.00)
B25: 51010200020001 | C25: Alimentos y Productos Agroforestales | D25: 107,963.50 | E25: 0 | F25: =A25+D25-E25 -> 107,963.50
B26: 51010200010006 | C26: Alquileres | D26: 16,500.00 | E26: 0 | F26: 16,500.00
B27: 51010200020004 | C27: Combustibles, Lubricantes, Productos quimicos y Conexos | D27: 63,262.59 | E27: 0 | F27: 63,262.59
B28: 510102000109990001 | C28: Comisiones y Gastos Bancarios | D28: 2,583.65 | E28: 0 | F28: 2,583.65
B29: 51010200010008 | C29: Conservación, Reparaciones menores y Contrucciones Temporales | D29: 83,340.00 | E29: 0 | F29: 83,340.00
B30: 51010200020007 | C30: Productos y Utiles Varios | D30: 1,514,400.62 | E30: 0 | F30: 1,514,400.62
B31: 51010100070001 | C31: Regalía Pascual | D31: 156,562.13 | E31: 0 | F31: 156,562.13
B32: 51010200010002 | C32: Servicios Básicos | D32: 64,635.81 | E32: 0 | F32: 64,635.81
B33: 51010100010001 | C33: Sueldos Fijos | D33: 30,000.00 | E33: 0 | F33: 30,000.00
B34: 51010200010005 | C34: Transporte y Almacenaje | D34: 3,000.00 | E34: 0 | F34: 3,000.00
C35: TOTAL | D35: =SUM(D9:D34) -> 29,810,396.69 | E35: =SUM(E9:E34) -> 29,810,396.69 | F35: =SUM(F9:F34) -> -0.00
B40: Director Regional | E40: Gerente Financiero Regional
B46: Gerente Administrativo Regional | E46: Contadora General

Sheet ESF SNS
C2: SERVICIO REGIONAL DE SALUD ESTE V
C3: Estado de Situación Financiera
C4: Del ejercicio terminado de Agosto 2025
C5: (Valores en RD$)
A7: Mapeo | C7: Activos | E7: 2025
C8: Activos corrientes
A9: 0001 | D9: Efectivo y equivalentes de efectivo (Nota 7) | E9: 19,179,124
A10: 0002 | D10: Inversiones a corto plazo (Nota 8)
A11: 0003 | D11: Porción corriente de documentos por cobrar (Nota 9)
A12: 0004 | D12: Cuenta por cobrar a corto plazo (Notas 8) | E12: 0
A13: 0005 | D13: Inventarios (Nota 9) | E13: 10,937,551.44
A14: 0006 | D14: Pagos anticipados (Nota 12) | E14: 0
A15: 0007 | D15: Otros activos corrientes (Nota 13)
C16: Total activos corrientes | E16: =SUM(E8:E15) -> 30,116,675 | F16: =SUM(F8:F15) -> 0
C18: Activos no corrientes
A19: 0008 | D19: Cuentas por cobrar a largo plazo (Notas 14) | E19: 0
A20: 0009 | D20: Documentos por cobrar (Nota 15)
A21: 0010 | D21: Inversiones a largo plazo (Nota 16)
A22: 0011 | D22: Otros activos financieros (Notas 17) | E22: 0
A23: 0012 | D23: Mobiliarios y equipos neto (Nota 10) | E23: 16,956,600
A24: 0013 | D24: Activos intangibles (Nota 10)
A25: 0014 | D25: Otros activos no financieros (Nota 20)
C26: Total activos no corrientes | E26: =SUM(E19:E25) -> 16,956,600 | F26: =SUM(F19:F25) -> 0
C28: Total activos | E28: =SUM(E26,E16) -> 47,073,275 | F28: =SUM(F26,F16) -> 0
C30: Pasivos
C31: Pasivos corrientes
A32: 0015 | D32: Sobregiro bancario (Nota 21) | E32: 0
A33: 0016 | D33: Cuentas por pagar a corto plazo (Nota 11) | E33: 812,654
A34: 0017 | D34: Préstamos a corto plazo (Nota 23)
A35: 0018 | D35: Parte corriente de préstamos a largo plazo (Nota 24)
A36: 0019 | D36: Retenciones y acumulaciones por pagar (Nota 12) | E36: 408,560
A37: 0020 | D37: Provisiones a corto plazo (Nota 26) | E37: 2,572,709
A38: 0021 | D38: Beneficios a empleados a corto plazo (Nota 13) | E38: 7,122,541
A39: 0022 | D39: Pensiones (Nota 28)
A40: 0023 | D40: Otros pasivos corrientes (Nota 29)
C41: Total pasivos corrientes | E41: =SUM(E32:E40) -> 10,916,464 | F41: =SUM(F32:F40) -> 0
C43: Pasivos no corrientes
A44: 0024 | D44: Cuentas por pagar a largo plazo (Nota 14)
A45: 0025 | D45: Préstamos a largo plazo (Nota 31)
A46: 0026 | D46: Instrumentos de deuda (Nota 32)
A47: 0027 | D47: Provisiones a largo plazo (Nota 33)
A48: 0028 | D48: Beneficios a empleados a largo plazo (Nota 15)
A49: 0029 | D49: Otros pasivos no corrientes (Nota 35)
C50: Total pasivos no corrientes | E50: =+E44+E48 -> 0
C51: Total pasivos | E51: =+E41+E50 -> 10,916,464 | F51: =SUM(F41,F50) -> 0
C53: Activos Netos/Patrimonio (Nota 16)
A54: 0030 | D54: Capital Institucional | E54: 8,594,104
A55: 0031 | D55: Reservas | E55: 0
A56: 0032 | D56: Resultados positivos (ahorro) / negativo (desahorro) | E56: ='ERF SRS'!F28 -> 5,688,226
A57: 0033 | D57: Resultados acumulados | E57: 21,874,482
A58: 0034 | D58: Intereses minoritarios
C59: Total activos netos/patrimonio | E59: =+E54+E56+E57 -> 36,156,811
C61: Total pasivos y activos netos/patrimonio | E61: =+E59+E41 -> 47,073,275 | F61: =+F51+F59 -> 0 | H61: =E28-E61 -> 0
D66: Director Regional | G66: Gerente Financiero Regional
D72: Gerente Administrativo Regional | G72: Contadora General
H76: =SUM(E56:E57) -> 27,562,707

Sheet ERF SRS
C2: SERVICIO REGIONAL DE SALUD ESTE V
B3: Estado de Rendimiento Financiero
B4: Del ejercicio terminado Agosto 2025
B5: (Valores en RD$)
H6: =+[2]ESF!H7 -> 2016
C7: Ingresos (Nota 17) | F7: 2025
A8: 0035 | D8: Impuestos
A9: 0036 | D9: Ingresos por transacciones con contraprestación | F9: 13,119,082
A10: 0037 | D10: Transferencias
A11: 0038 | D11: Recargos, multas y otros ingresos
C12: Total ingresos | F12: =SUM(F8:F11) -> 13,119,082 | H12: =SUM(H8:H11) -> 0
C14: Gastos (Notas 18, 19, 20, 21 y 22)
A15: 0039 | D15: Sueldos, salarios y beneficios a empleados | F15: 3,034,070
A16: 0040 | D16: Subvenciones y otros pagos por transferencias
A17: 0041 | D17: Suministros y materiales para consumo | F17: 2,981,027
A18: 0042 | D18: Gasto de depreciación y amortización
A19: 0043 | D19: Deterioro del valor de propiedad, planta y equipo | F19: 450,903
A20: 0044 | D20: Otros gastos | F20: 949,777
A21: 0045 | D21: Gastos financieros | F21: 15,079.54 | H21: =SUMIF([2]BC!B:B,[2]ERF!A22,[2]BC!G:G) -> 
C22: Total gastos | F22: =SUM(F15:F21) -> 7,430,856 | H22: =SUM(H15:H21) -> 
A24: 0046 | D24: Ganancia (pérdida) por diferencia cambiaria | F24: 0 | H24: 0
A26: 0047 | D26: Participación en resultado de asociadas | F26: 0 | H26: 0
C28: Resultados positivos (ahorro) / negativo (desahorro) | F28: =+F12-F22+F24+F26 -> 5,688,226 | H28: =+H12-H22+H24+H26 -> 
C30: Atribuible a:
A31: 0048 | D31: Propietarios de la entidad controladora | F31: 0 | H31: 0
A32: 0049 | D32: Intereses minoritarios | F32: 0 | H32: 0
F33: =SUM(F31:F32) -> 0 | H33: =SUM(H31:H32) -> 0
D36: Director Regional
D39: Gerente Administrativo Regional
D43: Gerente Financiero Regional
D46: Contadora General

Sheet Activos fijos
A2: SERVICIO REGIONAL DE SALUD ESTE V
A3: Estado de Activo Fijo
A4: Del ejercicio terminado Agosto 2025
A5: ,
A6: Mobiliario y equipos 2021
C7: Saldo al inico | E7: Adiciones | F7: Activos Mes | G7: Ajuste | I7: Transferencias | K7: Saldo al Final
A8: Costos
A9: Mobiliarios y equipos oficina | C9: =SUM(E24:E32) -> 29,588,519 | E9: =F24+F25+F27+F29+F31+F28+F32+F30 -> 10,783,753.29 | K9: =+C9+E9+F9 -> 40,372,272 | L9: =K9-K14 -> 15,284,357.96
A10: Equipos de transporte y otros | C10: =SUM(E23) -> 2,502,044 | E10: =SUM(F23) -> 1,672,237.70 | K10: =+C10+E10 -> 4,174,281 | L10: =K10-K15 -> 1,672,241.70
C11: =SUM(C9:C10) -> 32,090,562 | E11: =SUM(E9:E10) -> 12,455,991 | G11: =SUM(G9:G10) -> 0 | I11: =SUM(I9:I10) -> 0 | K11: =SUM(K9:K10) -> 44,546,553
A13: Depreciación
A14: Mobiliario y equipos de oficina | C14: =SUM(G24:G32) -> 25,087,914 | K14: =+C14+E14+G14 -> 25,087,914
A15: Equipos de Computos | C15: =SUM(G23) -> 2,502,040 | K15: =+C15+E15 -> 2,502,040
C16: =SUM(C14:C15) -> 27,589,953 | E16: =SUM(E14:E15) -> 0 | G16: =SUM(G14:G15) -> 0 | I16: =+SUM(I14:I15) -> 0 | K16: =SUM(K14:K15) -> 27,589,953
A17: Mobiliario y Equipos Netos. | C17: =+C11-C16 -> 4,500,609 | E17: =+E11-E16 -> 12,455,991 | G17: =+G11+G16 -> 0 | I17: =+I11+I16 -> 0 | K17: =+K11-K16 -> 16,956,600
K19: =K33 -> 15,840,835.51
K21: =K17-K19 -> 1,115,764.15
E22: VALOR | F22: ADIOCIONALES | G22: DEPRECIACION | I22: VALOR LIBRO
B23: EQUIPO TRANSPORTE | E23: 2,502,043.54 | F23: =1600707.7+71530 -> 1,672,237.70 | G23: 2,502,039.54 | I23: =E23-G23 -> 4.00 | K23: =E23+F23-G23 -> 1,672,241.70
B24: Mobiliarios y equipos oficina | E24: 5,196,232.00 | F24: 89,750.00 | G24: 2,994,673.46 | I24: =E24-G24 -> 2,201,558.54 | K24: =E24+F24-G24 -> 2,291,308.54
B25: Comunicación | F25: 89,794.01 | I25: =E25-G25 -> 0 | K25: 89,794.01
B26: Electricos | I26: =E26-G26 -> 0 | K26: 0
B27: medicos y laboratorios | E27: 23,276,522.41 | F27: =4013179.8+304126.68+128242.4 -> 4,445,548.88 | G27: 21,837,155.76 | I27: =E27-G27 -> 1,439,366.65 | K27: 5,884,915.53
B28: computos | E28: =1032030.81+83733.34 -> 1,115,764.15 | F28: 5,980,990.40 | G28: =235553.73+20530.94 -> 256,084.67 | I28: =E28-G28 -> 859,679.48 | K28: =E29+F28-G28 -> 5,724,905.73 | L28: =SUM(+K28+K25) -> 5,814,699.74
B29: Maquinaria y equipos | F29: 23,970.00 | I29: =E30-G29 -> 0 | K29: =E30+F29-G29 -> 23,970.00
B30: Muebles de oficinas | F30: 153,700.00 | I30: 0 | K30: 153,700.00
B31: otros mobiliarios | I31: =E31-G31 -> 0 | K31: 0 | L31: =SUM(K31+K30+K24+K29+K32) -> 2,468,978.54
B32: Aires Acondicionado | I32: 0 | K32: 0
E33: =SUM(E23:E32) -> 32,090,562.10 | F33: =SUM(F23:F32) -> 12,455,990.99 | G33: =SUM(G23:G32) -> 27,589,953.43 | I33: =SUM(I23:I32) -> 4,500,608.67 | K33: =SUM(K23:K32) -> 15,840,835.51
I38: DEPREC. | K38: VALOR
I39: 288,820.24 | K39: 19,860.76 | L39: =SUM(I39+K39) -> 308,681.00
I40: 129,249.52 | K40: 194,384.18 | L40: =SUM(I40+K40) -> 323,633.70
I41: 21,234,177.52 | K41: 937,235.21 | L41: =SUM(I41+K41) -> 22,171,412.73
I42: 7,380.94 | K42: 81,789.04 | L42: =SUM(I42+K42) -> 89,169.98
I43: 176,972.37 | K43: 170,523.63 | L43: 347,496.00
I44: 496.20 | K44: 23,837.80 | L44: 24,334.00
I45: 58.97 | K45: 11,736.03 | L45: 11,795.00
L46: 0
L47: 0
L48: 0
L49: 0
L50: 0
L51: 0
L52: 0
I53: =SUM(I39:I52) -> 21,837,155.76 | L53: =SUM(L39:L52) -> 23,276,522.41

Sheet ECAMP (hidden)
B3: =+[2]ESF!C2 -> Entidad Modelo
B4: Estado de Cambio de Activo / Patrimonio
A5: Del ejercicio terminado del 01 Enero 2022 al 30 Abril 2022
B6: (Valores en RD$)
E8: Capital Aportado | G8: Cambios en Políticas Contables | I8: Revaluación | K8: Resultados Acumulados | M8: Total Activos Netos / Patrimonio
C9: Saldo al 31 de diciembre de 2019 | E9: 0 | G9: 0 | I9: 0 | M9: =SUM(E9,G9,I9,K9) -> 0
C10: Cambio en políticas contables | G10: 0 | M10: =SUM(E10,G10,I10,K10) -> 0
C11: Revaluación de Propiedad, planta y equipo | I11: 0 | M11: =SUM(E11,G11,I11,K11) -> 0
C12: Ajuste al patrimonio | M12: =SUM(E12,G12,I12,K12) -> 0
C13: Resultado del período | M13: =SUM(E13,G13,I13,K13) -> 0
C14: Saldo al 31 de diciembre de 2016 | E14: =SUM(E9:E13) -> 0 | G14: =SUM(G9:G13) -> 0 | I14: =SUM(I9:I13) -> 0 | K14: =SUM(K9:K13) -> 0 | M14: =SUM(M9:M13) -> 0
C16: Cambio en políticas contables | G16: 0 | M16: =SUM(E16,G16,I16,K16) -> 0
C17: Revaluación de Propiedad, planta y equipo | I17: 0 | M17: =SUM(E17,G17,I17,K17) -> 0
C18: Efecto del gasto de depreciación de los activos revaluados | I18: 0 | K18: 0 | M18: =SUM(E18,G18,I18,K18) -> 0
C19: Ajuste al patrimonio | M19: =SUM(E19,G19,I19,K19) -> 0
C20: Resultado del período | M20: =SUM(E20,G20,I20,K20) -> 0
C21: Saldo al 31 de Diciembre de 2017 | E21: =SUM(E20,E14) -> 0 | G21: =SUM(G20,G14) -> 0 | I21: =SUM(I20,I14) -> 0 | K21: =SUM(K14:K20) -> 0 | M21: =SUM(M14:M20) -> 0
C24: =+[2]ESF!C65 -> Las notas en las páginas 7 a 20 son parte integral de estos Estados Financieros.

Sheet EST. Flujo Efc (hidden)
C2: =+[2]ESF!C2 -> Entidad Modelo
C3: Estado de Flujo de Efectivo
B4: Del ejercicio terminado del 01 Agosto 2022 al 30 Septiembre 2022
C5: (Valores en RD$)
F7: 2022
C8: Flujos de efectivo procedentes de actividades operativas
D9: Cobros impuestos | F9: 0 | H9: 0
D10: Contribuciones de la seguridad social | F10: 0 | H10: 0
D11: Cobros por venta de bienes y servicios y arrendamientos | F11: 0 | H11: 0
D12: Cobros de subvenciones, transferencias, y otras asignaciones
D13: Cobros de seguros por primas, reclamos y otros | F13: 0 | H13: 0
D14: Cobros por contratos mantenidos para negocios o intercambio | F14: 0 | H14: 0
D15: Cobros de intereses financieros | F15: 0 | H15: 0
D16: Otros cobros | F16: 0 | H16: 0
D18: Pagos a otras entidades para financiar sus operaciones (Transferencias) | F18: 0 | H18: 0
D19: Pagos a los trabajadores o en beneficio de ellos
D20: Pagos por contribuciones a la seguridad social
D21: Pagos de pensiones y jubilaciones | F21: 0 | H21: 0
D22: Pagos a proveedores
D23: Pagos por contratos mantenidos para negocios o intercambio | F23: 0
D24: Pagos de intereses | F24: 0 | H24: 0
D25: Otros pagos | H25: 0
C26: Flujos de efectivo netos de las actividades de operación | F26: =SUM(F9:F25) -> 0 | H26: =SUM(H9:H25) -> 0
C28: Flujos de efectivo de las actividades de inversión
D29: Cobros por venta de propiedad, planta y equipo | F29: 0 | H29: 0
D30: Cobros por venta de intangibles y otros activos de largo plazo | F30: 0 | H30: 0
D31: Cobros por títulos patrimoniales o de deuda y participación en asociaciones | F31: 0 | H31: 0
D32: Cobros por reembolsos de préstamos o anticipos hechos a terceros | F32: 0 | H32: 0
D33: Cobros por conceptos de contratos a futuro, a plazo, opciones o permuta | F33: 0 | H33: 0
D34: Otros cobros | F34: 0 | H34: 0
D36: Pagos por adquisición de propiedad, planta y equipo
D37: Pagos por adquisición de intangibles y otros activos de largo plazo
D38: Pagos por adquisición de títulos patrimoniales o de deuda y participación en asociaciones | F38: 0 | H38: 0
D39: Pagos por otorgamiento de préstamos o anticipos hechos a terceros | F39: 0 | H39: 0
D40: Pagos por conceptos de contratos a futuro, a plazo, opciones o permuta | F40: 0 | H40: 0
D41: Pagos por costos de construcciones y desarrollos en proceso | F41: 0 | H41: 0
D42: Otros pagos | F42: 0 | H42: 0
C43: Flujos de efectivo netos por las actividades de inversión | F43: =SUM(F29:F42) -> 0 | H43: =SUM(H29:H42) -> 0
C45: Flujos de efectivo de las actividades de financiación
D46: Cobro por emisión de títulos de deudas, bonos | F46: 0 | H46: 0
D47: Cobro por préstamos, pagarés, hipotecas | F47: 0 | H47: 0
D48: Cobro por aporte de accionista | F48: 0 | H48: 0
D49: Cobro de los arrendatarios por contratos de arrendamientos financieros | F49: 0 | H49: 0
D50: Otros cobros | F50: 0 | H50: 0
D52: Pago reembolso en efectivo de los montos recibidos en emisión de títulos de deudas, bonos | F52: 0 | H52: 0
D53: Pago reembolso en efectivo de los montos recibidos en préstamos, pagarés, hipotecas | F53: 0 | H53: 0
D54: Pago reembolso de efectivo recibió por aporte de accionista | F54: 0 | H54: 0
D55: Pago por distribución/dividendos al gobierno | F55: 0 | H55: 0
D56: Pago de los arrendatarios por contratos de arrendamientos financieros | F56: 0 | H56: 0
D57: Otros pagos | F57: 0 | H57: 0
C58: Flujos de efectivo netos por las actividades de financiación | F58: =SUM(F46:F57) -> 0 | H58: =SUM(H46:H57) -> 0
C60: Incremento/(Disminución) neta en efectivo y equivalentes al efectivo | F60: =+F26+F43 -> 0 | H60: =SUM(H26,H43,H58) -> 0
C61: Efectivo y equivalentes al efectivo al principio del período
C62: Efectivo y equivalentes al efectivo al final del período | F62: =SUM(F60:F61) -> 0 | H62: =SUM(H60:H61) -> 0
C65: =+[2]ESF!C65 -> Las notas en las páginas 7 a 20 son parte integral de estos Estados Financieros.
D68: Diferencia para control debe ser cero (0)

Sheet Efectivo
B1: SERVICIO REGIONAL DE SALUD ESTE V
B2: Nota # 7: Efectivo Caja y Bancos
B3: Del ejercicio terminado de Agosto 2025
B4: (Valores en RD$)
A7: # Cta. | B7: Nombre de cuenta | C7: Monto
B8: Caja Chica
A9: 300105134 | B9: Operaciones Ex PSS
B10: Fondo Salud Ex-PSS
A11: 160-112014 | B11: Servicio Nacional de Salud (Fondos Senasa)
A12: 314-0000776 | B12: Fondo Operativo | C12: 5,137.89
A13: 240-020561-7 | B13: Cuenta Nueva Ranchito
A14: 314-00145-4 | B14: Fondos Especiales CDC
A15: 314-0000920-0 | B15: Cuenta VIH
A16: 314-000181-0 | B16: Cuenta Tuberculosis
B17: Cuenta Ayuda
B18: Venta de Servicios | C18: 19,173,986
B19: Cuenta Proyecto FGRSS
B20: Anticipo Financieros
B21: Mantenimiento Clinica
B22: Total balance cuentas de bancarias del Reservas | C22: =SUM(C8:C21) -> 19,179,124
A25: # Cta. | B25: Tesoreria Nacional | C25: Monto
A26: 9995028000 | B26: Fondo de la Direccion Central Servicio Nacional de Salud
A27: 9995028001 | B27: Sud- Cuenta Cuota de Pago Direccion Central Servicio Nacional de Salud
A28: 2110003000 | B28: Cuenta Direccion Central SNS
A29: 9998014000 | B29: Recaudacion Establecimiento de Salud PSS
B30: Cuenta Colectora Recursos Directos PSS
A31: 100198000 | B31: Sud- Cuenta Disponibilidad Direccion Central Servicio Nacional de Salud
A32: 100198001 | B32: Sub-Cuota de Pago Direccion Central Servicio Nacional de Salud
B33: Total balance cuentas de bancarias tesoreria nacional
B35: Total efectivo y equivalentes de efectivo | C35: =+C22+C33 -> 19,179,124

Sheet Cuenta por Cobrar
A3: SERVICIO REGIONAL DE SALUD ESTE V
A4: Notas # 8: Cuenta Por Cobrar
A5: Del ejercicio terminado de Agosto 2025
A6: (Valores en RD$)
A10: Detalle | B10: Monto
A13: Cuentas Por Cobrar Colaboradores
A14: Otras Cuentas Por Cobrar (Retencion IR-3)
A15: Cuentas por Cobrar Proyecto FGBRSS
A16: Cuentas por Cobrar Ventas de Servicios (Hospital Morillo King) | B16: 0
A17: Anticipos financieros
A18: Total Cuentas Por Cobrar | B18: =+B13+B14+B15+B16+B17 -> 0

Sheet Inventario
A4: SERVICIO REGIONAL DE SALUD ESTE V
A5: Nota # 9: Inventario
A6: Del Ejercicio terminado Agosto 2025
A7: (Valores en RD$)
A10: Descripción | B10: Monto
A11: Inventario de Útiles y Suministro de Oficina
A12: Inventario Medicamentos | B12: 10,937,551.44
A13: Inventario de Material Med. Quirurjicos. | B13: 0
A14: Total Inventario | B14: =SUM(B11:B13) -> 10,937,551

Sheet CXP Corto plazo
A4: SERVICIO REGIONAL DE SALUD ESTE V
A5: Nota # 11: Cuentas por Pagar a Corto Plazo
A6: Del Ejercicio terminado Agosto 2025
A7: (Valores en RD$)
A11: Detalle | B11: Monto
A12: Cuentas por Pagar Suplidores | B12: 812,654
A13: Total Cuentas Por Pagar a Corto Plazo | B13: =+B12 -> 812,654

Sheet Retenciones y Acum.
A3: SERVICIO REGIONAL DE SALUD ESTE V
A4: Nota #12: Retenciones y Acumulaciones
A5: Del Ejercicio terminado Agosto 2025
B6: (Valores en RD$)
C9: 2023
B10: Detalle | C10: Monto
B11: Retenciones ISR Empleados
B12: Retencion ISR 5% | C12: 408,560
B13: Retenciones ISR 10%
B14: Retencion ITBIS
B15: Infotep
B16: Provisión para Pagos de Bonificaciones | C16: 7,122,541
B17: Regalía Pascual por Pagar | C17: 2,572,709
B18: Retencion Seguridad Social
B19: Retencion de Supervision de Obras
B20: Retencion ley 6-86 Pensiones
B21: Total Retenciones y Acumulaciones | C21: =SUM(C11:C20) -> 10,103,810

Sheet Benef. Empl x p Corto Plazo (hidden)
A1: SERVICIO REGIONAL DE SALUD ESTE V
A2: Nota # 13: Beneficios a Empleados por Pagar a Corto Plazo
A3: Del Ejercicio terminado Diciembre 2024
A4: (Valores en RD$)
A7: Detalle | B7: Monto
A8: Sueldos Por Pagar
A9: Viaticos Empleados
A10: Prestaciones Laborales Por Pagar Empleados
A11: Regalia Pascual
A12: Incentivo
A13: Seguridad Social x Pagar
A14: Total Beneficios a Empleados por Pagar a Corto Plazo | B14: =SUM(B8:B13) -> 0

Sheet CXP Largo Plazo (hidden)
A1: SERVICIO REGIONAL DE SALUD ESTE V
A2: Nota #14: Cuentas por Pagar Largo Plazo
A3: Del Ejercicio terminado Diciembre 2024
A4: (Valores en RD$)
A8: Detalle | B8: Monto
A11: Cuentas por Pagar Hospitalaria Largo Plazo
A13: Total Cuentas Por Pagar a Largo Plazo | B13: =SUM(B11:B12) -> 0

Sheet Benef. Empl x pagar Larg. Plaz (hidden)
A1: SERVICIO REGIONAL DE SALUD ESTE V
A2: Nota #15: Beneficios a Empleados por Pagar Largo Plazo
A3: Del Ejercicio terminado Diciembre 2024
A4: (Valores en RD$)
A7: Detalle | B7: Monto
A10: Sueldos Por Pagar
A11: Viaticos Empleados
A12: Prestaciones Laborales Por Pagar Empleados
A13: Total Cuentas Por Pagar Largo Plazo | B13: =+B10+B11+B12 -> 0

Sheet Ingresos
A2: SERVICIO REGIONAL DE SALUD ESTE V
A3: Nota 17: Ingresos
A4: Del Ejercicio terminado Agosto 2025
A5: (Valores en RD$)
B7: 2023
A8: Ingresos con Contraprestacion de Servicios | B8: Monto
A9: Venta de Servicios
A10: Sub-Total | B10: =SUM(B9) -> 0
A12: Ingresos sin Contraprestacion de Servicios | B12: Monto
A13: Otros Ingresos | B13: 13,119,082.08
A14: Operaciones Ex PSS
A15: Fondo Salud Ex-PSS | B15: 0
A16: Fondo Operativo
A17: Cuenta Nueva Ranchito
A18: Fondos Especiales CDC
A19: Cuenta VIH
A20: Cuenta Tuberculosis
A21: Cuenta Proyecto FGRSS
A22: Anticipo Financieros
A23: Cuenta Direccion Central SNS
A24: Sud- Cuenta Disponibilidad Direccion Central Servicio Nacional de Salud
A25: Sub-Total | B25: =SUM(B13:B24) -> 13,119,082
A26: Total | B26: =+B10+B25 -> 13,119,082

Sheet Total Gasto
B2: SERVICIO REGIONAL DE SALUD ESTE V
B3: Nota #18,19,20,21 y 22 Gastos Generales
A4: Del Ejercicio terminado Agosto 2025
B5: (Valores en RD$)
C6: 2025
B7: Detalles | C7: Monto
B8: Gastos de Consumo
B9: Remuneraciones
B10: Sueldos para Cargos Fijos | C10: 1,470,674
B11: Sueldos Personal Temporero | C11: 136,775
B12: Compensaciones Directas al Personal
B13: Jornales | C13: 12,000
B14: Honorarios
B15: Prestaciones y Bonificaciones | C15: 763,281
B16: Contribuciones a la Seguridad Social | C16: =153046.62+25867.02+152831.05 -> 331,745
B17: Sueldo anual nº 13 | C17: 125,595
B18: Otros Servicios Personales
B19: Bienes y Servicios
B20: Servicios no Personales
B21: Servicios de Comunicaciones | C21: 90,721
B22: Impuestos, Derechos y Tasa
B23: Servicios Basicos
B24: Publicidad, Impresiones y Encuadernaciones
B25: Viaticos Dentro y Fuera del Pais | C25: 206,000
B26: Transporte y Almacenaje
B27: Alquileres | C27: 847,056
B28: Seguros
B29: Conservacion, Reparaciones Menores y Construcciones Temporales | C29: 450,903
B30: Otros Servicios No Personales
B31: Materiales y Suministros
B32: Alimentos y Productos Agroforestales | C32: 277,029
B33: Productos Medicinaels para uso humanos
B34: Textiles y Vestuarios
B35: Productos de Papel, Carton e Impresos
B36: Combustibles, Lubricantes, Productos Auimicos y Conexos | C36: 123,961
B37: Productos de Cuero, Caucho y Plastico
B38: Productos de Minerales Metalicos y no Metalicos
B39: Productos y Utiles Varios | C39: 2,580,037
B40: Productos quimicos de laboratorio y uso personal
B41: Material de Limpieza
B42: Utilies de escritorio, oficina e informatica
B43: Utiles Menores medicos quirurgico y de laboratorio
B44: Productos electricos afienes
B45: Utiles de cocian y comedor
B46: Depreciacion
B47: Direccion general de Contabilidad Gubernamental
B48: Plan de Cuentas General Para el Sector Publico
B49: Gastos por Cuentas Incobrables
B50: Perdidas en Rentas por Recaudar
B51: Perdidas en Cuentas Por Cobrar
B52: Gastos Financieros
B53: Intereses de la Deuda Interna
B54: Intereses de la Deuda Externa
B55: Comisiones de la Deuda Interna
B56: Comisiones de la Deuda Externa
B57: Comisiones y Gastos Bancarios | C57: 15,080
B58: Perdida en Operaciones Financieras
B59: Transferencias y Donaciones Corrientes
B60: Transferencias Corrientes
B61: Prestaciones de la Seguridad Social
B62: Transferencias al Sector Privado
B63: Transferencias al Sector Publico
B64: Transferencias al Sector Externo
B65: Donaciones Dorrientes
B66: Donaciones a Gobiernos Exranjeros
B67: Total Gastos Generales | C67: =SUM(C10:C66) -> 7,430,856
